{"text_format":"1","workbook":"xlsx","n_sheets":4,"sheets":["基本データ","請求書用紙 (安全協力会8％)","内訳書","マクロ構文（注文外）"],"not_rendered":{"charts":0,"images":0,"macros":1,"external_links":0,"defined_names":3,"comments":1,"pivot_tables":0},"unopened":[],"bounds":{"document_bytes":16777216,"sheet_cells":100000,"rows_first":2000,"rows_last":500,"rows_between":2000,"halvings":0,"cell_chars":16384,"cell_head_chars":4096},"cells_cut":0,"cells_raw":0,"read":"whole","date_system":"1900"}

{"sheet":"基本データ","index":0,"n_rows":14,"n_cols":9,"rows_kept":14,"cut":false,"hidden":false,"merged":[[8,6,8,7],[3,6,3,7],[4,6,4,7],[5,6,5,7],[6,6,6,7],[7,6,7,7],[9,6,9,7],[10,6,10,7],[11,6,11,7],[12,6,12,7],[13,6,13,7]]}
[]
[]
[null,"請求期間：",null,null,null,"業者情報："]
[null,"自：",null,null,null,"会社名："]
[null,"至：",null,null,null,"代表者名："]
[null,null,null,null,null,"請求先住所："]
[null,null,null,null,null,"電話番号："]
[null,null,null,null,null,"インボイス登録番号：",null,null,"※Tから入力お願い致します。"]
[null,"工事件名：",null,null,null,"銀行名："]
[null,"工事番号：",null,null,null,"支店名："]
[null,null,null,null,null,"口座種別："]
[null,null,null,null,null,"口座番号："]
[null,null,null,null,null,"口座名義フリガナ："]
[null,null,null,null,null,"口座名義："]

{"sheet":"請求書用紙 (安全協力会8％)","index":1,"n_rows":73,"n_cols":68,"rows_kept":73,"cut":false,"hidden":false,"merged":[[26,49,26,56],[25,41,25,48],[26,41,26,48],[24,49,24,56],[25,49,25,56],[26,33,26,40],[36,41,36,46],[36,47,36,56],[32,45,34,48],[32,49,34,52],[32,53,34,56],[35,41,35,48],[35,49,35,52],[35,53,35,56],[29,41,29,47],[32,41,34,44],[31,53,31,56],[31,49,31,52],[31,45,31,48],[31,41,31,44],[27,49,27,56],[28,49,28,56],[29,49,29,56],[24,41,24,48],[25,4,25,10],[28,41,28,47],[27,41,27,47],[22,33,22,40],[23,33,23,40],[24,33,24,40],[25,33,25,40],[18,4,18,10],[19,4,19,10],[20,4,20,10],[21,4,21,10],[18,41,18,48],[19,41,19,48],[20,41,20,48],[21,41,21,48],[26,0,26,32],[24,11,24,32],[25,11,25,32],[22,0,22,3],[23,0,23,3],[24,0,24,3],[25,0,25,3],[22,41,22,48],[23,41,23,48],[0,0,0,56],[1,44,1,56],[2,44,2,56],[4,37,5,56],[7,3,8,10],[7,14,8,32],[7,37,7,56],[8,37,8,56],[15,4,15,10],[9,17,10,32],[9,37,9,56],[10,42,10,56],[11,35,14,36],[11,37,11,44],[11,51,11,56],[12,37,12,44],[12,51,12,56],[13,41,13,56],[14,41,14,56],[10,35,10,41],[15,49,15,56],[9,8,9,16],[7,0,7,2],[15,0,15,3],[24,4,24,10],[15,33,15,40],[17,33,17,40],[18,33,18,40],[19,33,19,40],[20,33,20,40],[21,33,21,40],[15,11,15,32],[16,11,16,32],[17,11,17,32],[18,11,18,32],[19,11,19,32],[20,11,20,32],[21,11,21,32],[22,11,22,32],[23,11,23,32],[22,49,22,56],[23,49,23,56],[21,0,21,3],[16,4,16,10],[17,4,17,10],[16,33,16,40],[15,41,15,48],[16,41,16,48],[17,41,17,48],[16,49,16,56],[17,49,17,56],[18,49,18,56],[19,49,19,56],[20,49,20,56],[21,49,21,56],[16,0,16,3],[17,0,17,3],[18,0,18,3],[19,0,19,3],[20,0,20,3],[22,4,22,10],[23,4,23,10]]}
["請求書（安全協力会費）8%"]
[null,null,null,null,null,null,null,null,null,null,null,null,null,null,null,null,null,null,null,null,null,null,null,null,null,null,null,null,null,null,null,null,null,null,null,"請求期間",null,null,null,null,null,null,"自：",null,{"$f":"基本データ!C4","v":"00:00:00"},null,null,null,null,null,null,null,null,null,null,null,null,null,null,null,null,null,null,null,null,null,"↓科目コードと摘要用（非表示）"]
[null,null,null,null,null,null,null,null,null,null,null,null,null,null,null,null,null,null,null,null,null,null,null,null,null,null,null,null,null,null,null,null,null,null,null,null,null,null,null,null,null,null,"至：",null,{"$f":"基本データ!C5","v":"00:00:00"},null,null,null,null,null,null,null,null,null,null,null,null,null,null,null,null,null,null,null,null,null,"科目コード","摘出"]
[null,null,null,null,null,null,null,null,null,null,null,null,null,null,null,null,null,null,null,null,null,null,null,null,null,null,null,null,null,null,null,null,null,null,null,"住所",null,null,null,null,null,null,null,null,null,null,null,null,null,null,null,null,null,null,null,null,null,null,null,null,null,null,null,null,null,null,"0101","準備費"]
["株式会社リンク・トラスト安全協力会　御中",null,null,null,null,null,null,null,null,null,null,null,null,null,null,null,null,null,null,null,null,null,null,null,null,null,null,null,null,null,null,null,null,null,null,null,null,{"$f":"基本データ!G6","v":0},null,null,null,null,null,null,null,null,null,null,null,null,null,null,null,null,null,null,null,null,null,null,null,null,null,null,null,null,"0102","仮設物資"]
[null,null,null,null,null,null,null,null,null,null,null,null,null,null,null,null,null,null,null,null,null,null,null,null,null,null,null,null,null,null,null,null,null,null,null,null,null,null,null,null,null,null,null,null,null,null,null,null,null,null,null,null,null,null,null,null,null,null,null,null,null,null,null,null,null,null,"0103","安全費"]
[null,null,null,null,null,null,null,null,null,null,null,null,null,null,null,null,null,null,null,null,null,null,null,null,null,null,null,null,null,null,null,null,null,null,null,"取引先名",null,null,null,null,null,null,null,null,null,null,null,null,null,null,null,null,null,null,null,"印",null,null,null,null,null,null,null,null,null,null,"0104","動力用水光熱費"]
["工事No",null,null,{"$f":"基本データ!C10","v":0},null,null,null,null,null,null,null,"工事名",null,null,{"$f":"基本データ!C9","v":0},null,null,null,null,null,null,null,null,null,null,null,null,null,null,null,null,null,null,null,null,null,null,{"$f":"基本データ!G4","v":0},null,null,null,null,null,null,null,null,null,null,null,null,null,null,null,null,null,null,null,null,null,null,null,null,null,null,null,null,"0105","試験調査費"]
[null,null,null,null,null,null,null,null,null,null,null,null,null,null,null,null,null,null,null,null,null,null,null,null,null,null,null,null,null,null,null,null,null,null,null,null,null,{"$f":"基本データ!G5","v":0},null,null,null,null,null,null,null,null,null,null,null,null,null,null,null,null,null,null,null,null,null,null,null,null,null,null,null,null,"0106","機械器具費"]
[null,null,null,null,null,null,null,null,"今回請求金額（税込）",null,null,null,null,null,null,null,null,{"$f":"AX30","v":0},null,null,null,null,null,null,null,null,null,null,null,null,null,null,null,null,null,"電話",null,{"$f":"基本データ!G7","v":0},null,null,null,null,null,null,null,null,null,null,null,null,null,null,null,null,null,null,null,null,null,null,null,null,null,null,null,null,"0107","運搬費"]
[null,null,null,null,null,null,null,null,null,null,null,null,null,null,null,null,null,null,null,null,null,null,null,null,null,null,null,null,null,null,null,null,null,null,null,"インボイス登録番号",null,null,null,null,null,null,{"$f":"基本データ!G8","v":0},null,null,null,null,null,null,null,null,null,null,null,null,null,null,null,null,null,null,null,null,null,null,null,"0110","遣り方"]
[null,null,null,null,null,null,null,null,null,null,null,null,null,null,null,null,null,null,null,null,null,null,null,null,null,null,null,null,null,null,null,null,null,null,null,"振込先",null,{"$f":"基本データ!G9","v":0},null,null,null,null,null,null,null,"銀行",null,"口座種別",null,null,null,{"$f":"基本データ!G11","v":0},null,null,null,null,null,null,null,null,null,null,null,null,null,null,"0111","墨出し・現寸"]
[null,null,null,null,null,null,null,null,null,null,null,null,null,null,null,null,null,null,null,null,null,null,null,null,null,null,null,null,null,null,null,null,null,null,null,null,null,{"$f":"基本データ!G10","v":0},null,null,null,null,null,null,null,"支店",null,"口座番号",null,null,null,{"$f":"基本データ!G12","v":0},null,null,null,null,null,null,null,null,null,null,null,null,null,null,"0112","外部足場"]
[null,null,null,null,null,null,null,null,null,null,null,null,null,null,null,null,null,null,null,null,null,null,null,null,null,null,null,null,null,null,null,null,null,null,null,null,null,"フリガナ",null,null,null,{"$f":"基本データ!G13","v":0},null,null,null,null,null,null,null,null,null,null,null,null,null,null,null,null,null,null,null,null,null,null,null,null,"0113","内部足場"]
[null,null,null,null,null,null,null,null,null,null,null,null,null,null,null,null,null,null,null,null,null,null,null,null,null,null,null,null,null,null,null,null,null,null,null,null,null,"口座名義",null,null,null,{"$f":"基本データ!G14","v":0},null,null,null,null,null,null,null,null,null,null,null,null,null,null,null,null,null,null,null,null,null,null,null,null,"0114","災害防止"]
["内訳書ｺｰﾄﾞ",null,null,null,"科目コード",null,null,null,null,null,null,"工種名・摘要",null,null,null,null,null,null,null,null,null,null,null,null,null,null,null,null,null,null,null,null,null,"金額①",null,null,null,null,null,null,null,"値引き②",null,null,null,null,null,null,null,"①-②",null,null,null,null,null,null,null,null,null,null,null,null,null,null,null,null,"0115","仮設雑費"]
[1,null,null,null,null,null,null,null,null,null,null,{"$f":"IFERROR(VLOOKUP($E17,$BO$4:$BP$73,2,FALSE),\"\")","v":""},null,null,null,null,null,null,null,null,null,null,null,null,null,null,null,null,null,null,null,null,null,{"$f":"IF(SUM(内訳書!A5:A1003)=0,SUM(内訳書!U5:X1003),SUMIF(内訳書!A:A,A17,内訳書!U:X))","v":0},null,null,null,null,null,null,null,null,null,null,null,null,null,null,null,{"$f":"AH17+AP17","v":0},null,null,null,null,null,null,null,null,null,null,null,null,null,null,null,null,"0116","養生"]
[2,null,null,null,null,null,null,null,null,null,null,{"$f":"IFERROR(VLOOKUP($E18,$BO$4:$BP$73,2,FALSE),\"\")","v":""},null,null,null,null,null,null,null,null,null,null,null,null,null,null,null,null,null,null,null,null,null,{"$f":"SUMIF(内訳書!A:A,A18,内訳書!U:X)","v":0},null,null,null,null,null,null,null,null,null,null,null,null,null,null,null,0,null,null,null,null,null,null,null,null,null,null,null,null,null,null,null,null,"0117","整理清掃"]
[3,null,null,null,null,null,null,null,null,null,null,{"$f":"IFERROR(VLOOKUP($E19,$BO$4:$BP$73,2,FALSE),\"\")","v":""},null,null,null,null,null,null,null,null,null,null,null,null,null,null,null,null,null,null,null,null,null,{"$f":"SUMIF(内訳書!A:A,A19,内訳書!U:X)","v":0},null,null,null,null,null,null,null,null,null,null,null,null,null,null,null,0,null,null,null,null,null,null,null,null,null,null,null,null,null,null,null,null,"0118","運搬費"]
[4,null,null,null,null,null,null,null,null,null,null,{"$f":"IFERROR(VLOOKUP($E20,$BO$4:$BP$73,2,FALSE),\"\")","v":""},null,null,null,null,null,null,null,null,null,null,null,null,null,null,null,null,null,null,null,null,null,{"$f":"SUMIF(内訳書!A:A,A20,内訳書!U:X)","v":0},null,null,null,null,null,null,null,null,null,null,null,null,null,null,null,0,null,null,null,null,null,null,null,null,null,null,null,null,null,null,null,null,"0119","専用仮設"]
[5,null,null,null,null,null,null,null,null,null,null,{"$f":"IFERROR(VLOOKUP($E21,$BO$4:$BP$73,2,FALSE),\"\")","v":""},null,null,null,null,null,null,null,null,null,null,null,null,null,null,null,null,null,null,null,null,null,{"$f":"SUMIF(内訳書!A:A,A21,内訳書!U:X)","v":0},null,null,null,null,null,null,null,null,null,null,null,null,null,null,null,0,null,null,null,null,null,null,null,null,null,null,null,null,null,null,null,null,"0120","近隣対応工事"]
[6,null,null,null,null,null,null,null,null,null,null,{"$f":"IFERROR(VLOOKUP($E22,$BO$4:$BP$73,2,FALSE),\"\")","v":""},null,null,null,null,null,null,null,null,null,null,null,null,null,null,null,null,null,null,null,null,null,{"$f":"SUMIF(内訳書!A:A,A22,内訳書!U:X)","v":0},null,null,null,null,null,null,null,null,null,null,null,null,null,null,null,0,null,null,null,null,null,null,null,null,null,null,null,null,null,null,null,null,"0200","土工事"]
[7,null,null,null,null,null,null,null,null,null,null,{"$f":"IFERROR(VLOOKUP($E23,$BO$4:$BP$73,2,FALSE),\"\")","v":""},null,null,null,null,null,null,null,null,null,null,null,null,null,null,null,null,null,null,null,null,null,{"$f":"SUMIF(内訳書!A:A,A23,内訳書!U:X)","v":0},null,null,null,null,null,null,null,null,null,null,null,null,null,null,null,0,null,null,null,null,null,null,null,null,null,null,null,null,null,null,null,null,"0300","地業工事"]
[8,null,null,null,null,null,null,null,null,null,null,{"$f":"IFERROR(VLOOKUP($E24,$BO$4:$BP$73,2,FALSE),\"\")","v":""},null,null,null,null,null,null,null,null,null,null,null,null,null,null,null,null,null,null,null,null,null,{"$f":"SUMIF(内訳書!A:A,A24,内訳書!U:X)","v":0},null,null,null,null,null,null,null,null,null,null,null,null,null,null,null,0,null,null,null,null,null,null,null,null,null,null,null,null,null,null,null,null,"0400","コンクリート工事"]
[9,null,null,null,null,null,null,null,null,null,null,{"$f":"IFERROR(VLOOKUP($E25,$BO$4:$BP$73,2,FALSE),\"\")","v":""},null,null,null,null,null,null,null,null,null,null,null,null,null,null,null,null,null,null,null,null,null,{"$f":"SUMIF(内訳書!A:A,A25,内訳書!U:X)","v":0},null,null,null,null,null,null,null,null,null,null,null,null,null,null,null,0,null,null,null,null,null,null,null,null,null,null,null,null,null,null,null,null,"0500","型枠工事"]
[10,null,null,null,null,null,null,null,null,null,null,{"$f":"IFERROR(VLOOKUP($E26,$BO$4:$BP$73,2,FALSE),\"\")","v":""},null,null,null,null,null,null,null,null,null,null,null,null,null,null,null,null,null,null,null,null,null,{"$f":"SUMIF(内訳書!A:A,A26,内訳書!U:X)","v":0},null,null,null,null,null,null,null,null,null,null,null,null,null,null,null,0,null,null,null,null,null,null,null,null,null,null,null,null,null,null,null,null,"0600","鉄筋工事"]
["合計",null,null,null,null,null,null,null,null,null,null,null,null,null,null,null,null,null,null,null,null,null,null,null,null,null,null,null,null,null,null,null,null,{"$f":"SUM(AH17:AO26)","v":0},null,null,null,null,null,null,null,{"$f":"SUM(AP17:AW26)","v":0},null,null,null,null,null,null,null,{"$f":"SUM(AX17:BE26)","v":0},null,null,null,null,null,null,null,null,null,null,null,null,null,null,null,null,"2000","仕上ﾕﾆｯﾄ工事"]
[null,null,null,null,null,null,null,null,null,null,null,null,null,null,null,null,null,null,null,null,null,null,null,null,null,null,null,null,null,null,null,null,null,null,null,null,null,null,null,null,null,"8％対象",null,null,null,null,null,null,null,{"$f":"AX27","v":0},null,null,null,null,null,null,null,null,null,null,null,null,null,null,null,null,"0700","鉄骨工事"]
[null,null,null,null,null,null,null,null,null,null,null,null,null,null,null,null,null,null,null,null,null,null,null,null,null,null,null,null,null,null,null,null,null,null,null,null,null,null,null,null,null,"消費税",null,null,null,null,null,null,null,{"$f":"ROUND(AX28*0.08,0)","v":0},null,null,null,null,null,null,null,null,null,null,null,null,null,null,null,null,"0800","組積工事"]
[null,null,null,null,null,null,null,null,null,null,null,null,null,null,null,null,null,null,null,null,null,null,null,null,null,null,null,null,null,null,null,null,null,null,null,null,null,null,null,null,null,"請求金額",null,null,null,null,null,null,null,{"$f":"SUM(AX28:BE29)","v":0},null,null,null,null,null,null,null,null,null,null,null,null,null,null,null,null,"0900","防水工事"]
["備考",null,null,null,null,null,null,null,null,null,null,null,null,null,null,null,null,null,null,null,null,null,null,null,null,null,null,null,null,null,null,null,null,null,null,null,null,null,null,null,null,null,null,null,null,null,null,null,null,null,null,null,null,null,null,null,null,null,null,null,null,null,null,null,null,null,"1000","石工事"]
[null,null,null,null,null,null,null,null,null,null,null,null,null,null,null,null,null,null,null,null,null,null,null,null,null,null,null,null,null,null,null,null,null,null,null,null,null,null,null,null,null,"社長印",null,null,null,"部長印",null,null,null,"統括印",null,null,null,"所長印",null,null,null,null,null,null,null,null,null,null,null,null,"1100","タイル工事"]
[null,null,null,null,null,null,null,null,null,null,null,null,null,null,null,null,null,null,null,null,null,null,null,null,null,null,null,null,null,null,null,null,null,null,null,null,null,null,null,null,null,null,null,null,null,null,null,null,null,null,null,null,null,null,null,null,null,null,null,null,null,null,null,null,null,null,"1300","金属工事"]
[null,null,null,null,null,null,null,null,null,null,null,null,null,null,null,null,null,null,null,null,null,null,null,null,null,null,null,null,null,null,null,null,null,null,null,null,null,null,null,null,null,null,null,null,null,null,null,null,null,null,null,null,null,null,null,null,null,null,null,null,null,null,null,null,null,null,"1400","左官工事"]
[null,null,null,null,null,null,null,null,null,null,null,null,null,null,null,null,null,null,null,null,null,null,null,null,null,null,null,null,null,null,null,null,null,null,null,null,null,null,null,null,null,null,null,null,null,null,null,null,null,null,null,null,null,null,null,null,null,null,null,null,null,null,null,null,null,null,"1500","木製建具工事"]
[null,null,null,null,null,null,null,null,null,null,null,null,null,null,null,null,null,null,null,null,null,null,null,null,null,null,null,null,null,null,null,null,null,null,null,null,null,null,null,null,null,"立替",null,null,null,null,null,null,null,"有",null,null,null,"無",null,null,null,null,null,null,null,null,null,null,null,null,"1600","金属建具工事"]
[null,null,null,null,null,null,null,null,null,null,null,null,null,null,null,null,null,null,null,null,null,null,null,null,null,null,null,null,null,null,null,null,null,null,null,null,null,null,null,null,null,"査定連番",null,null,null,null,null,null,null,null,null,null,null,null,null,null,null,null,null,null,null,null,null,null,null,null,"1700","ガラス工事"]
[null,null,null,null,null,null,null,null,null,null,null,null,null,null,null,null,null,null,null,null,null,null,null,null,null,null,null,null,null,null,null,null,null,null,null,null,null,null,null,null,null,null,null,null,null,null,null,null,null,null,null,null,null,null,null,null,null,null,null,null,null,null,null,null,null,null,"1800","塗装工事"]
[null,null,null,null,null,null,null,null,null,null,null,null,null,null,null,null,null,null,null,null,null,null,null,null,null,null,null,null,null,null,null,null,null,null,null,null,null,null,null,null,null,null,null,null,null,null,null,null,null,null,null,null,null,null,null,null,null,null,null,null,null,null,null,null,null,null,"1900","内外装工事"]
[null,null,null,null,null,null,null,null,null,null,null,null,null,null,null,null,null,null,null,null,null,null,null,null,null,null,null,null,null,null,null,null,null,null,null,null,null,null,null,null,null,null,null,null,null,null,null,null,null,null,null,null,null,null,null,null,null,null,null,null,null,null,null,null,null,null,"2000","仕上ﾕﾆｯﾄ工事"]
[null,null,null,null,null,null,null,null,null,null,null,null,null,null,null,null,null,null,null,null,null,null,null,null,null,null,null,null,null,null,null,null,null,null,null,null,null,null,null,null,null,null,null,null,null,null,null,null,null,null,null,null,null,null,null,null,null,null,null,null,null,null,null,null,null,null,"2100","その他工事"]
[null,null,null,null,null,null,null,null,null,null,null,null,null,null,null,null,null,null,null,null,null,null,null,null,null,null,null,null,null,null,null,null,null,null,null,null,null,null,null,null,null,null,null,null,null,null,null,null,null,null,null,null,null,null,null,null,null,null,null,null,null,null,null,null,null,null,"3000","電気設備工事"]
[null,null,null,null,null,null,null,null,null,null,null,null,null,null,null,null,null,null,null,null,null,null,null,null,null,null,null,null,null,null,null,null,null,null,null,null,null,null,null,null,null,null,null,null,null,null,null,null,null,null,null,null,null,null,null,null,null,null,null,null,null,null,null,null,null,null,"3100","機械設備工事"]
[null,null,null,null,null,null,null,null,null,null,null,null,null,null,null,null,null,null,null,null,null,null,null,null,null,null,null,null,null,null,null,null,null,null,null,null,null,null,null,null,null,null,null,null,null,null,null,null,null,null,null,null,null,null,null,null,null,null,null,null,null,null,null,null,null,null,"3300","昇降設備工事"]
[null,null,null,null,null,null,null,null,null,null,null,null,null,null,null,null,null,null,null,null,null,null,null,null,null,null,null,null,null,null,null,null,null,null,null,null,null,null,null,null,null,null,null,null,null,null,null,null,null,null,null,null,null,null,null,null,null,null,null,null,null,null,null,null,null,null,"3400","その他設備工事"]
[null,null,null,null,null,null,null,null,null,null,null,null,null,null,null,null,null,null,null,null,null,null,null,null,null,null,null,null,null,null,null,null,null,null,null,null,null,null,null,null,null,null,null,null,null,null,null,null,null,null,null,null,null,null,null,null,null,null,null,null,null,null,null,null,null,null,"4000","外構工事"]
[null,null,null,null,null,null,null,null,null,null,null,null,null,null,null,null,null,null,null,null,null,null,null,null,null,null,null,null,null,null,null,null,null,null,null,null,null,null,null,null,null,null,null,null,null,null,null,null,null,null,null,null,null,null,null,null,null,null,null,null,null,null,null,null,null,null,"4100","解体工事"]
[null,null,null,null,null,null,null,null,null,null,null,null,null,null,null,null,null,null,null,null,null,null,null,null,null,null,null,null,null,null,null,null,null,null,null,null,null,null,null,null,null,null,null,null,null,null,null,null,null,null,null,null,null,null,null,null,null,null,null,null,null,null,null,null,null,null,"4200","改修工事"]
[null,null,null,null,null,null,null,null,null,null,null,null,null,null,null,null,null,null,null,null,null,null,null,null,null,null,null,null,null,null,null,null,null,null,null,null,null,null,null,null,null,null,null,null,null,null,null,null,null,null,null,null,null,null,null,null,null,null,null,null,null,null,null,null,null,null,"4300","建築一括工事"]
[null,null,null,null,null,null,null,null,null,null,null,null,null,null,null,null,null,null,null,null,null,null,null,null,null,null,null,null,null,null,null,null,null,null,null,null,null,null,null,null,null,null,null,null,null,null,null,null,null,null,null,null,null,null,null,null,null,null,null,null,null,null,null,null,null,null,"4400","その後工事"]
[null,null,null,null,null,null,null,null,null,null,null,null,null,null,null,null,null,null,null,null,null,null,null,null,null,null,null,null,null,null,null,null,null,null,null,null,null,null,null,null,null,null,null,null,null,null,null,null,null,null,null,null,null,null,null,null,null,null,null,null,null,null,null,null,null,null,"4900","精算"]
[null,null,null,null,null,null,null,null,null,null,null,null,null,null,null,null,null,null,null,null,null,null,null,null,null,null,null,null,null,null,null,null,null,null,null,null,null,null,null,null,null,null,null,null,null,null,null,null,null,null,null,null,null,null,null,null,null,null,null,null,null,null,null,null,null,null,"5001","追加工事　1"]
[null,null,null,null,null,null,null,null,null,null,null,null,null,null,null,null,null,null,null,null,null,null,null,null,null,null,null,null,null,null,null,null,null,null,null,null,null,null,null,null,null,null,null,null,null,null,null,null,null,null,null,null,null,null,null,null,null,null,null,null,null,null,null,null,null,null,"5002","追加工事　2"]
[null,null,null,null,null,null,null,null,null,null,null,null,null,null,null,null,null,null,null,null,null,null,null,null,null,null,null,null,null,null,null,null,null,null,null,null,null,null,null,null,null,null,null,null,null,null,null,null,null,null,null,null,null,null,null,null,null,null,null,null,null,null,null,null,null,null,"5003","追加工事　3"]
[null,null,null,null,null,null,null,null,null,null,null,null,null,null,null,null,null,null,null,null,null,null,null,null,null,null,null,null,null,null,null,null,null,null,null,null,null,null,null,null,null,null,null,null,null,null,null,null,null,null,null,null,null,null,null,null,null,null,null,null,null,null,null,null,null,null,"5004","追加工事　4"]
[null,null,null,null,null,null,null,null,null,null,null,null,null,null,null,null,null,null,null,null,null,null,null,null,null,null,null,null,null,null,null,null,null,null,null,null,null,null,null,null,null,null,null,null,null,null,null,null,null,null,null,null,null,null,null,null,null,null,null,null,null,null,null,null,null,null,"5005","追加工事　5"]
[null,null,null,null,null,null,null,null,null,null,null,null,null,null,null,null,null,null,null,null,null,null,null,null,null,null,null,null,null,null,null,null,null,null,null,null,null,null,null,null,null,null,null,null,null,null,null,null,null,null,null,null,null,null,null,null,null,null,null,null,null,null,null,null,null,null,"5006","追加工事　6"]
[null,null,null,null,null,null,null,null,null,null,null,null,null,null,null,null,null,null,null,null,null,null,null,null,null,null,null,null,null,null,null,null,null,null,null,null,null,null,null,null,null,null,null,null,null,null,null,null,null,null,null,null,null,null,null,null,null,null,null,null,null,null,null,null,null,null,"5007","追加工事　7"]
[null,null,null,null,null,null,null,null,null,null,null,null,null,null,null,null,null,null,null,null,null,null,null,null,null,null,null,null,null,null,null,null,null,null,null,null,null,null,null,null,null,null,null,null,null,null,null,null,null,null,null,null,null,null,null,null,null,null,null,null,null,null,null,null,null,null,"5008","追加工事　8"]
[null,null,null,null,null,null,null,null,null,null,null,null,null,null,null,null,null,null,null,null,null,null,null,null,null,null,null,null,null,null,null,null,null,null,null,null,null,null,null,null,null,null,null,null,null,null,null,null,null,null,null,null,null,null,null,null,null,null,null,null,null,null,null,null,null,null,"5009","追加工事　9"]
[null,null,null,null,null,null,null,null,null,null,null,null,null,null,null,null,null,null,null,null,null,null,null,null,null,null,null,null,null,null,null,null,null,null,null,null,null,null,null,null,null,null,null,null,null,null,null,null,null,null,null,null,null,null,null,null,null,null,null,null,null,null,null,null,null,null,"5010","追加工事　10"]
[null,null,null,null,null,null,null,null,null,null,null,null,null,null,null,null,null,null,null,null,null,null,null,null,null,null,null,null,null,null,null,null,null,null,null,null,null,null,null,null,null,null,null,null,null,null,null,null,null,null,null,null,null,null,null,null,null,null,null,null,null,null,null,null,null,null,"6000","VE・CD"]
[null,null,null,null,null,null,null,null,null,null,null,null,null,null,null,null,null,null,null,null,null,null,null,null,null,null,null,null,null,null,null,null,null,null,null,null,null,null,null,null,null,null,null,null,null,null,null,null,null,null,null,null,null,null,null,null,null,null,null,null,null,null,null,null,null,null,"8001","労務安全費"]
[null,null,null,null,null,null,null,null,null,null,null,null,null,null,null,null,null,null,null,null,null,null,null,null,null,null,null,null,null,null,null,null,null,null,null,null,null,null,null,null,null,null,null,null,null,null,null,null,null,null,null,null,null,null,null,null,null,null,null,null,null,null,null,null,null,null,"8004","社員給与手当"]
[null,null,null,null,null,null,null,null,null,null,null,null,null,null,null,null,null,null,null,null,null,null,null,null,null,null,null,null,null,null,null,null,null,null,null,null,null,null,null,null,null,null,null,null,null,null,null,null,null,null,null,null,null,null,null,null,null,null,null,null,null,null,null,null,null,null,"8005","福利厚生費"]
[null,null,null,null,null,null,null,null,null,null,null,null,null,null,null,null,null,null,null,null,null,null,null,null,null,null,null,null,null,null,null,null,null,null,null,null,null,null,null,null,null,null,null,null,null,null,null,null,null,null,null,null,null,null,null,null,null,null,null,null,null,null,null,null,null,null,"8006","事務用品費"]
[null,null,null,null,null,null,null,null,null,null,null,null,null,null,null,null,null,null,null,null,null,null,null,null,null,null,null,null,null,null,null,null,null,null,null,null,null,null,null,null,null,null,null,null,null,null,null,null,null,null,null,null,null,null,null,null,null,null,null,null,null,null,null,null,null,null,"8007","通信交通費"]
[null,null,null,null,null,null,null,null,null,null,null,null,null,null,null,null,null,null,null,null,null,null,null,null,null,null,null,null,null,null,null,null,null,null,null,null,null,null,null,null,null,null,null,null,null,null,null,null,null,null,null,null,null,null,null,null,null,null,null,null,null,null,null,null,null,null,"8008","補償費"]
[null,null,null,null,null,null,null,null,null,null,null,null,null,null,null,null,null,null,null,null,null,null,null,null,null,null,null,null,null,null,null,null,null,null,null,null,null,null,null,null,null,null,null,null,null,null,null,null,null,null,null,null,null,null,null,null,null,null,null,null,null,null,null,null,null,null,"8009","原価性費用"]
[null,null,null,null,null,null,null,null,null,null,null,null,null,null,null,null,null,null,null,null,null,null,null,null,null,null,null,null,null,null,null,null,null,null,null,null,null,null,null,null,null,null,null,null,null,null,null,null,null,null,null,null,null,null,null,null,null,null,null,null,null,null,null,null,null,null,"8020","利益配当金"]
[null,null,null,null,null,null,null,null,null,null,null,null,null,null,null,null,null,null,null,null,null,null,null,null,null,null,null,null,null,null,null,null,null,null,null,null,null,null,null,null,null,null,null,null,null,null,null,null,null,null,null,null,null,null,null,null,null,null,null,null,null,null,null,null,null,null,"9100","不動産原価"]
[null,null,null,null,null,null,null,null,null,null,null,null,null,null,null,null,null,null,null,null,null,null,null,null,null,null,null,null,null,null,null,null,null,null,null,null,null,null,null,null,null,null,null,null,null,null,null,null,null,null,null,null,null,null,null,null,null,null,null,null,null,null,null,null,null,null,"9200","紹介料"]
[null,null,null,null,null,null,null,null,null,null,null,null,null,null,null,null,null,null,null,null,null,null,null,null,null,null,null,null,null,null,null,null,null,null,null,null,null,null,null,null,null,null,null,null,null,null,null,null,null,null,null,null,null,null,null,null,null,null,null,null,null,null,null,null,null,null,"9300","不動産原価(非課税)"]

{"sheet":"内訳書","index":2,"n_rows":364,"n_cols":29,"rows_kept":364,"cut":false,"hidden":false,"merged":[[313,6,313,13],[313,15,313,16],[313,17,313,19],[313,20,313,23],[314,6,314,13],[314,15,314,16],[314,17,314,19],[314,20,314,23],[315,6,315,13],[315,15,315,16],[315,17,315,19],[315,20,315,23],[316,6,316,13],[316,15,316,16],[316,17,316,19],[316,20,316,23],[13,28,13,31],[308,6,308,13],[308,15,308,16],[308,17,308,19],[308,20,308,23],[309,6,309,13],[309,15,309,16],[309,17,309,19],[309,20,309,23],[310,6,310,13],[310,15,310,16],[310,17,310,19],[310,20,310,23],[311,6,311,13],[311,15,311,16],[311,17,311,19],[311,20,311,23],[312,6,312,13],[312,15,312,16],[312,17,312,19],[312,20,312,23],[303,6,303,13],[303,15,303,16],[303,17,303,19],[303,20,303,23],[304,6,304,13],[304,15,304,16],[304,17,304,19],[304,20,304,23],[305,6,305,13],[305,15,305,16],[305,17,305,19],[305,20,305,23],[306,6,306,13],[306,15,306,16],[306,17,306,19],[306,20,306,23],[307,6,307,13],[307,15,307,16],[307,17,307,19],[307,20,307,23],[298,6,298,13],[298,15,298,16],[298,17,298,19],[298,20,298,23],[299,6,299,13],[299,15,299,16],[299,17,299,19],[299,20,299,23],[300,6,300,13],[300,15,300,16],[300,17,300,19],[300,20,300,23],[301,6,301,13],[301,15,301,16],[301,17,301,19],[301,20,301,23],[302,6,302,13],[302,15,302,16],[302,17,302,19],[302,20,302,23],[293,6,293,13],[293,15,293,16],[293,17,293,19],[293,20,293,23],[294,6,294,13],[294,15,294,16],[294,17,294,19],[294,20,294,23],[295,6,295,13],[295,15,295,16],[295,17,295,19],[295,20,295,23],[296,6,296,13],[296,15,296,16],[296,17,296,19],[296,20,296,23],[297,6,297,13],[297,15,297,16],[297,17,297,19],[297,20,297,23],[288,6,288,13],[288,15,288,16],[288,17,288,19],[288,20,288,23],[289,6,289,13],[289,15,289,16],[289,17,289,19],[289,20,289,23],[290,6,290,13],[290,15,290,16],[290,17,290,19],[290,20,290,23],[291,6,291,13],[291,15,291,16],[291,17,291,19],[291,20,291,23],[292,6,292,13],[292,15,292,16],[292,17,292,19],[292,20,292,23],[283,6,283,13],[283,15,283,16],[283,17,283,19],[283,20,283,23],[284,6,284,13],[284,15,284,16],[284,17,284,19],[284,20,284,23],[285,6,285,13],[285,15,285,16],[285,17,285,19],[285,20,285,23],[286,6,286,13],[286,15,286,16],[286,17,286,19],[286,20,286,23],[287,6,287,13],[287,15,287,16],[287,17,287,19],[287,20,287,23],[278,6,278,13],[278,15,278,16],[278,17,278,19],[278,20,278,23],[279,6,279,13],[279,15,279,16],[279,17,279,19],[279,20,279,23],[280,6,280,13],[280,15,280,16],[280,17,280,19],[280,20,280,23],[281,6,281,13],[281,15,281,16],[281,17,281,19],[281,20,281,23],[282,6,282,13],[282,15,282,16],[282,17,282,19],[282,20,282,23],[273,6,273,13],[273,15,273,16],[273,17,273,19],[273,20,273,23],[274,6,274,13],[274,15,274,16],[274,17,274,19],[274,20,274,23],[275,6,275,13],[275,15,275,16],[275,17,275,19],[275,20,275,23],[276,6,276,13],[276,15,276,16],[276,17,276,19],[276,20,276,23],[277,6,277,13],[277,15,277,16],[277,17,277,19],[277,20,277,23],[268,6,268,13],[268,15,268,16],[268,17,268,19],[268,20,268,23],[269,6,269,13],[269,15,269,16],[269,17,269,19],[269,20,269,23],[270,6,270,13],[270,15,270,16],[270,17,270,19],[270,20,270,23],[271,6,271,13],[271,15,271,16],[271,17,271,19],[271,20,271,23],[272,6,272,13],[272,15,272,16],[272,17,272,19],[272,20,272,23],[263,6,263,13],[263,15,263,16],[263,17,263,19],[263,20,263,23],[264,6,264,13],[264,15,264,16],[264,17,264,19],[264,20,264,23],[265,6,265,13],[265,15,265,16],[265,17,265,19],[265,20,265,23],[266,6,266,13],[266,15,266,16],[266,17,266,19],[266,20,266,23],[267,6,267,13],[267,15,267,16],[267,17,267,19],[267,20,267,23],[258,6,258,13],[258,15,258,16],[258,17,258,19],[258,20,258,23],[259,6,259,13],[259,15,259,16],[259,17,259,19],[259,20,259,23],[260,6,260,13],[260,15,260,16],[260,17,260,19],[260,20,260,23],[261,6,261,13],[261,15,261,16],[261,17,261,19],[261,20,261,23],[262,6,262,13],[262,15,262,16],[262,17,262,19],[262,20,262,23],[253,6,253,13],[253,15,253,16],[253,17,253,19],[253,20,253,23],[254,6,254,13],[254,15,254,16],[254,17,254,19],[254,20,254,23],[255,6,255,13],[255,15,255,16],[255,17,255,19],[255,20,255,23],[256,6,256,13],[256,15,256,16],[256,17,256,19],[256,20,256,23],[257,6,257,13],[257,15,257,16],[257,17,257,19],[257,20,257,23],[248,6,248,13],[248,15,248,16],[248,17,248,19],[248,20,248,23],[249,6,249,13],[249,15,249,16],[249,17,249,19],[249,20,249,23],[250,6,250,13],[250,15,250,16],[250,17,250,19],[250,20,250,23],[251,6,251,13],[251,15,251,16],[251,17,251,19],[251,20,251,23],[252,6,252,13],[252,15,252,16],[252,17,252,19],[252,20,252,23],[243,6,243,13],[243,15,243,16],[243,17,243,19],[243,20,243,23],[244,6,244,13],[244,15,244,16],[244,17,244,19],[244,20,244,23],[245,6,245,13],[245,15,245,16],[245,17,245,19],[245,20,245,23],[246,6,246,13],[246,15,246,16],[246,17,246,19],[246,20,246,23],[247,6,247,13],[247,15,247,16],[247,17,247,19],[247,20,247,23],[238,6,238,13],[238,15,238,16],[238,17,238,19],[238,20,238,23],[239,6,239,13],[239,15,239,16],[239,17,239,19],[239,20,239,23],[240,6,240,13],[240,15,240,16],[240,17,240,19],[240,20,240,23],[241,6,241,13],[241,15,241,16],[241,17,241,19],[241,20,241,23],[242,6,242,13],[242,15,242,16],[242,17,242,19],[242,20,242,23],[233,6,233,13],[233,15,233,16],[233,17,233,19],[233,20,233,23],[234,6,234,13],[234,15,234,16],[234,17,234,19],[234,20,234,23],[235,6,235,13],[235,15,235,16],[235,17,235,19],[235,20,235,23],[236,6,236,13],[236,15,236,16],[236,17,236,19],[236,20,236,23],[237,6,237,13],[237,15,237,16],[237,17,237,19],[237,20,237,23],[228,6,228,13],[228,15,228,16],[228,17,228,19],[228,20,228,23],[229,6,229,13],[229,15,229,16],[229,17,229,19],[229,20,229,23],[230,6,230,13],[230,15,230,16],[230,17,230,19],[230,20,230,23],[231,6,231,13],[231,15,231,16],[231,17,231,19],[231,20,231,23],[232,6,232,13],[232,15,232,16],[232,17,232,19],[232,20,232,23],[3,27,3,31],[6,28,6,31],[5,28,5,31],[4,28,4,31],[7,28,7,31],[8,28,8,31],[9,28,9,31],[10,28,10,31],[11,28,11,31],[12,28,12,31],[14,28,14,31],[226,6,226,13],[226,15,226,16],[226,17,226,19],[226,20,226,23],[227,6,227,13],[227,15,227,16],[227,17,227,19],[227,20,227,23],[224,6,224,13],[224,15,224,16],[224,17,224,19],[224,20,224,23],[225,6,225,13],[225,15,225,16],[225,17,225,19],[225,20,225,23],[222,6,222,13],[222,15,222,16],[222,17,222,19],[222,20,222,23],[223,6,223,13],[223,15,223,16],[223,17,223,19],[223,20,223,23],[220,6,220,13],[220,15,220,16],[220,17,220,19],[220,20,220,23],[221,6,221,13],[221,15,221,16],[221,17,221,19],[221,20,221,23],[218,6,218,13],[218,15,218,16],[218,17,218,19],[218,20,218,23],[219,6,219,13],[219,15,219,16],[219,17,219,19],[219,20,219,23],[216,6,216,13],[216,15,216,16],[216,17,216,19],[216,20,216,23],[217,6,217,13],[217,15,217,16],[217,17,217,19],[217,20,217,23],[214,6,214,13],[214,15,214,16],[214,17,214,19],[214,20,214,23],[215,6,215,13],[215,15,215,16],[215,17,215,19],[215,20,215,23],[212,6,212,13],[212,15,212,16],[212,17,212,19],[212,20,212,23],[213,6,213,13],[213,15,213,16],[213,17,213,19],[213,20,213,23],[210,6,210,13],[210,15,210,16],[210,17,210,19],[210,20,210,23],[211,6,211,13],[211,15,211,16],[211,17,211,19],[211,20,211,23],[208,6,208,13],[208,15,208,16],[208,17,208,19],[208,20,208,23],[209,6,209,13],[209,15,209,16],[209,17,209,19],[209,20,209,23],[206,6,206,13],[206,15,206,16],[206,17,206,19],[206,20,206,23],[207,6,207,13],[207,15,207,16],[207,17,207,19],[207,20,207,23],[204,6,204,13],[204,15,204,16],[204,17,204,19],[204,20,204,23],[205,6,205,13],[205,15,205,16],[205,17,205,19],[205,20,205,23],[202,6,202,13],[202,15,202,16],[202,17,202,19],[202,20,202,23],[203,6,203,13],[203,15,203,16],[203,17,203,19],[203,20,203,23],[200,6,200,13],[200,15,200,16],[200,17,200,19],[200,20,200,23],[201,6,201,13],[201,15,201,16],[201,17,201,19],[201,20,201,23],[198,6,198,13],[198,15,198,16],[198,17,198,19],[198,20,198,23],[199,6,199,13],[199,15,199,16],[199,17,199,19],[199,20,199,23],[196,6,196,13],[196,15,196,16],[196,17,196,19],[196,20,196,23],[197,6,197,13],[197,15,197,16],[197,17,197,19],[197,20,197,23],[194,6,194,13],[194,15,194,16],[194,17,194,19],[194,20,194,23],[195,6,195,13],[195,15,195,16],[195,17,195,19],[195,20,195,23],[192,6,192,13],[192,15,192,16],[192,17,192,19],[192,20,192,23],[193,6,193,13],[193,15,193,16],[193,17,193,19],[193,20,193,23],[190,6,190,13],[190,15,190,16],[190,17,190,19],[190,20,190,23],[191,6,191,13],[191,15,191,16],[191,17,191,19],[191,20,191,23],[188,6,188,13],[188,15,188,16],[188,17,188,19],[188,20,188,23],[189,6,189,13],[189,15,189,16],[189,17,189,19],[189,20,189,23],[186,6,186,13],[186,15,186,16],[186,17,186,19],[186,20,186,23],[187,6,187,13],[187,15,187,16],[187,17,187,19],[187,20,187,23],[184,6,184,13],[184,15,184,16],[184,17,184,19],[184,20,184,23],[185,6,185,13],[185,15,185,16],[185,17,185,19],[185,20,185,23],[182,6,182,13],[182,15,182,16],[182,17,182,19],[182,20,182,23],[183,6,183,13],[183,15,183,16],[183,17,183,19],[183,20,183,23],[180,6,180,13],[180,15,180,16],[180,17,180,19],[180,20,180,23],[181,6,181,13],[181,15,181,16],[181,17,181,19],[181,20,181,23],[178,6,178,13],[178,15,178,16],[178,17,178,19],[178,20,178,23],[179,6,179,13],[179,15,179,16],[179,17,179,19],[179,20,179,23],[176,6,176,13],[176,15,176,16],[176,17,176,19],[176,20,176,23],[177,6,177,13],[177,15,177,16],[177,17,177,19],[177,20,177,23],[174,6,174,13],[174,15,174,16],[174,17,174,19],[174,20,174,23],[175,6,175,13],[175,15,175,16],[175,17,175,19],[175,20,175,23],[172,6,172,13],[172,15,172,16],[172,17,172,19],[172,20,172,23],[173,6,173,13],[173,15,173,16],[173,17,173,19],[173,20,173,23],[170,6,170,13],[170,15,170,16],[170,17,170,19],[170,20,170,23],[171,6,171,13],[171,15,171,16],[171,17,171,19],[171,20,171,23],[168,6,168,13],[168,15,168,16],[168,17,168,19],[168,20,168,23],[169,6,169,13],[169,15,169,16],[169,17,169,19],[169,20,169,23],[166,6,166,13],[166,15,166,16],[166,17,166,19],[166,20,166,23],[167,6,167,13],[167,15,167,16],[167,17,167,19],[167,20,167,23],[164,6,164,13],[164,15,164,16],[164,17,164,19],[164,20,164,23],[165,6,165,13],[165,15,165,16],[165,17,165,19],[165,20,165,23],[162,6,162,13],[162,15,162,16],[162,17,162,19],[162,20,162,23],[163,6,163,13],[163,15,163,16],[163,17,163,19],[163,20,163,23],[160,6,160,13],[160,15,160,16],[160,17,160,19],[160,20,160,23],[161,6,161,13],[161,15,161,16],[161,17,161,19],[161,20,161,23],[158,6,158,13],[158,15,158,16],[158,17,158,19],[158,20,158,23],[159,6,159,13],[159,15,159,16],[159,17,159,19],[159,20,159,23],[156,6,156,13],[156,15,156,16],[156,17,156,19],[156,20,156,23],[157,6,157,13],[157,15,157,16],[157,17,157,19],[157,20,157,23],[154,6,154,13],[154,15,154,16],[154,17,154,19],[154,20,154,23],[155,6,155,13],[155,15,155,16],[155,17,155,19],[155,20,155,23],[152,6,152,13],[152,15,152,16],[152,17,152,19],[152,20,152,23],[153,6,153,13],[153,15,153,16],[153,17,153,19],[153,20,153,23],[150,6,150,13],[150,15,150,16],[150,17,150,19],[150,20,150,23],[151,6,151,13],[151,15,151,16],[151,17,151,19],[151,20,151,23],[148,6,148,13],[148,15,148,16],[148,17,148,19],[148,20,148,23],[149,6,149,13],[149,15,149,16],[149,17,149,19],[149,20,149,23],[146,6,146,13],[146,15,146,16],[146,17,146,19],[146,20,146,23],[147,6,147,13],[147,15,147,16],[147,17,147,19],[147,20,147,23],[144,6,144,13],[144,15,144,16],[144,17,144,19],[144,20,144,23],[145,6,145,13],[145,15,145,16],[145,17,145,19],[145,20,145,23],[142,6,142,13],[142,15,142,16],[142,17,142,19],[142,20,142,23],[143,6,143,13],[143,15,143,16],[143,17,143,19],[143,20,143,23],[140,6,140,13],[140,15,140,16],[140,17,140,19],[140,20,140,23],[141,6,141,13],[141,15,141,16],[141,17,141,19],[141,20,141,23],[138,6,138,13],[138,15,138,16],[138,17,138,19],[138,20,138,23],[139,6,139,13],[139,15,139,16],[139,17,139,19],[139,20,139,23],[136,6,136,13],[136,15,136,16],[136,17,136,19],[136,20,136,23],[137,6,137,13],[137,15,137,16],[137,17,137,19],[137,20,137,23],[134,6,134,13],[134,15,134,16],[134,17,134,19],[134,20,134,23],[135,6,135,13],[135,15,135,16],[135,17,135,19],[135,20,135,23],[132,6,132,13],[132,15,132,16],[132,17,132,19],[132,20,132,23],[133,6,133,13],[133,15,133,16],[133,17,133,19],[133,20,133,23],[130,6,130,13],[130,15,130,16],[130,17,130,19],[130,20,130,23],[131,6,131,13],[131,15,131,16],[131,17,131,19],[131,20,131,23],[128,6,128,13],[128,15,128,16],[128,17,128,19],[128,20,128,23],[129,6,129,13],[129,15,129,16],[129,17,129,19],[129,20,129,23],[126,6,126,13],[126,15,126,16],[126,17,126,19],[126,20,126,23],[127,6,127,13],[127,15,127,16],[127,17,127,19],[127,20,127,23],[124,6,124,13],[124,15,124,16],[124,17,124,19],[124,20,124,23],[125,6,125,13],[125,15,125,16],[125,17,125,19],[125,20,125,23],[122,6,122,13],[122,15,122,16],[122,17,122,19],[122,20,122,23],[123,6,123,13],[123,15,123,16],[123,17,123,19],[123,20,123,23],[120,6,120,13],[120,15,120,16],[120,17,120,19],[120,20,120,23],[121,6,121,13],[121,15,121,16],[121,17,121,19],[121,20,121,23],[118,6,118,13],[118,15,118,16],[118,17,118,19],[118,20,118,23],[119,6,119,13],[119,15,119,16],[119,17,119,19],[119,20,119,23],[116,6,116,13],[116,15,116,16],[116,17,116,19],[116,20,116,23],[117,6,117,13],[117,15,117,16],[117,17,117,19],[117,20,117,23],[114,6,114,13],[114,15,114,16],[114,17,114,19],[114,20,114,23],[115,6,115,13],[115,15,115,16],[115,17,115,19],[115,20,115,23],[112,6,112,13],[112,15,112,16],[112,17,112,19],[112,20,112,23],[113,6,113,13],[113,15,113,16],[113,17,113,19],[113,20,113,23],[110,6,110,13],[110,15,110,16],[110,17,110,19],[110,20,110,23],[111,6,111,13],[111,15,111,16],[111,17,111,19],[111,20,111,23],[108,6,108,13],[108,15,108,16],[108,17,108,19],[108,20,108,23],[109,6,109,13],[109,15,109,16],[109,17,109,19],[109,20,109,23],[106,6,106,13],[106,15,106,16],[106,17,106,19],[106,20,106,23],[107,6,107,13],[107,15,107,16],[107,17,107,19],[107,20,107,23],[104,6,104,13],[104,15,104,16],[104,17,104,19],[104,20,104,23],[105,6,105,13],[105,15,105,16],[105,17,105,19],[105,20,105,23],[102,6,102,13],[102,15,102,16],[102,17,102,19],[102,20,102,23],[103,6,103,13],[103,15,103,16],[103,17,103,19],[103,20,103,23],[100,6,100,13],[100,15,100,16],[100,17,100,19],[100,20,100,23],[101,6,101,13],[101,15,101,16],[101,17,101,19],[101,20,101,23],[98,6,98,13],[98,15,98,16],[98,17,98,19],[98,20,98,23],[99,6,99,13],[99,15,99,16],[99,17,99,19],[99,20,99,23],[96,6,96,13],[96,15,96,16],[96,17,96,19],[96,20,96,23],[97,6,97,13],[97,15,97,16],[97,17,97,19],[97,20,97,23],[94,6,94,13],[94,15,94,16],[94,17,94,19],[94,20,94,23],[95,6,95,13],[95,15,95,16],[95,17,95,19],[95,20,95,23],[92,6,92,13],[92,15,92,16],[92,17,92,19],[92,20,92,23],[93,6,93,13],[93,15,93,16],[93,17,93,19],[93,20,93,23],[90,6,90,13],[90,15,90,16],[90,17,90,19],[90,20,90,23],[91,6,91,13],[91,15,91,16],[91,17,91,19],[91,20,91,23],[88,6,88,13],[88,15,88,16],[88,17,88,19],[88,20,88,23],[89,6,89,13],[89,15,89,16],[89,17,89,19],[89,20,89,23],[86,6,86,13],[86,15,86,16],[86,17,86,19],[86,20,86,23],[87,6,87,13],[87,15,87,16],[87,17,87,19],[87,20,87,23],[84,6,84,13],[84,15,84,16],[84,17,84,19],[84,20,84,23],[85,6,85,13],[85,15,85,16],[85,17,85,19],[85,20,85,23],[82,6,82,13],[82,15,82,16],[82,17,82,19],[82,20,82,23],[83,6,83,13],[83,15,83,16],[83,17,83,19],[83,20,83,23],[80,6,80,13],[80,15,80,16],[80,17,80,19],[80,20,80,23],[81,6,81,13],[81,15,81,16],[81,17,81,19],[81,20,81,23],[78,6,78,13],[78,15,78,16],[78,17,78,19],[78,20,78,23],[79,6,79,13],[79,15,79,16],[79,17,79,19],[79,20,79,23],[76,6,76,13],[76,15,76,16],[76,17,76,19],[76,20,76,23],[77,6,77,13],[77,15,77,16],[77,17,77,19],[77,20,77,23],[74,6,74,13],[74,15,74,16],[74,17,74,19],[74,20,74,23],[75,6,75,13],[75,15,75,16],[75,17,75,19],[75,20,75,23],[72,6,72,13],[72,15,72,16],[72,17,72,19],[72,20,72,23],[73,6,73,13],[73,15,73,16],[73,17,73,19],[73,20,73,23],[70,6,70,13],[70,15,70,16],[70,17,70,19],[70,20,70,23],[71,6,71,13],[71,15,71,16],[71,17,71,19],[71,20,71,23]],"merged_total":1462,"flags":["merged_cut"]}
["請求内訳",null,null,null,null,null,null,null,null,null,null,null,null,null,null,null,null,null,null,null,"提出用"]
[null,null,null,null,null,null,null,null,null,null,null,null,null,null,null,null,null,{"$f":"IF(基本データ!G4=0,\"\",基本データ!G4)","v":""}]
["コード","日付（期間）",null,null,null,null,"名称・品名・形状・寸法",null,null,null,null,null,null,null,"単位","数　量",null,"単　価",null,null,"金　　額"]
[null,"月","日","～","月","日",null,null,null,null,null,null,null,null,null,null,null,null,null,null,null,null,null,null,null,null,null,"コードごとの小計"]
[null,null,null,{"$f":"IF(E5=\"\",\"\",\"～\")","v":""},null,null,null,null,null,null,null,null,null,null,null,null,null,null,null,null,{"$f":"IF(R5=0,\"\",ROUND(P5*R5,0))","v":""},null,null,null,null,{"$f":"IF(U5=\"\",\"\",IF(SUM(A$5:A$1048576)=0,\"\",IF(A5=0,\"コード入力\",\"\")))","v":""},null,1,{"$f":"SUMIF(A:A,AB5,U:X)","v":0}]
[null,null,null,{"$f":"IF(E6=\"\",\"\",\"～\")","v":""},null,null,null,null,null,null,null,null,null,null,null,null,null,null,null,null,"",null,null,null,null,"",null,2,0]
[null,null,null,"",null,null,null,null,null,null,null,null,null,null,null,null,null,null,null,null,"",null,null,null,null,"",null,3,0]
[null,null,null,"",null,null,null,null,null,null,null,null,null,null,null,null,null,null,null,null,"",null,null,null,null,"",null,4,0]
[null,null,null,"",null,null,null,null,null,null,null,null,null,null,null,null,null,null,null,null,"",null,null,null,null,"",null,5,0]
[null,null,null,"",null,null,null,null,null,null,null,null,null,null,null,null,null,null,null,null,"",null,null,null,null,"",null,6,0]
[null,null,null,"",null,null,null,null,null,null,null,null,null,null,null,null,null,null,null,null,"",null,null,null,null,"",null,7,0]
[null,null,null,"",null,null,null,null,null,null,null,null,null,null,null,null,null,null,null,null,"",null,null,null,null,"",null,8,0]
[null,null,null,"",null,null,null,null,null,null,null,null,null,null,null,null,null,null,null,null,"",null,null,null,null,"",null,9,0]
[null,null,null,"",null,null,null,null,null,null,null,null,null,null,null,null,null,null,null,null,"",null,null,null,null,"",null,10,0]
[null,null,null,"",null,null,null,null,null,null,null,null,null,null,null,null,null,null,null,null,"",null,null,null,null,"",null,"なし",{"$f":"IF(SUM(A5:A1003)=0,SUM(U5:X1003),0)","v":0}]
[null,null,null,"",null,null,null,null,null,null,null,null,null,null,null,null,null,null,null,null,"",null,null,null,null,""]
[null,null,null,"",null,null,null,null,null,null,null,null,null,null,null,null,null,null,null,null,"",null,null,null,null,""]
[null,null,null,"",null,null,null,null,null,null,null,null,null,null,null,null,null,null,null,null,"",null,null,null,null,""]
[null,null,null,"",null,null,null,null,null,null,null,null,null,null,null,null,null,null,null,null,"",null,null,null,null,""]
[null,null,null,"",null,null,null,null,null,null,null,null,null,null,null,null,null,null,null,null,"",null,null,null,null,""]
[null,null,null,"",null,null,null,null,null,null,null,null,null,null,null,null,null,null,null,null,"",null,null,null,null,""]
[null,null,null,"",null,null,null,null,null,null,null,null,null,null,null,null,null,null,null,null,"",null,null,null,null,""]
[null,null,null,"",null,null,null,null,null,null,null,null,null,null,null,null,null,null,null,null,"",null,null,null,null,""]
[null,null,null,"",null,null,null,null,null,null,null,null,null,null,null,null,null,null,null,null,"",null,null,null,null,""]
[null,null,null,"",null,null,null,null,null,null,null,null,null,null,null,null,null,null,null,null,"",null,null,null,null,""]
[null,null,null,"",null,null,null,null,null,null,null,null,null,null,null,null,null,null,null,null,"",null,null,null,null,""]
[null,null,null,"",null,null,null,null,null,null,null,null,null,null,null,null,null,null,null,null,"",null,null,null,null,""]
[null,null,null,"",null,null,null,null,null,null,null,null,null,null,null,null,null,null,null,null,"",null,null,null,null,""]
[null,null,null,"",null,null,null,null,null,null,null,null,null,null,null,null,null,null,null,null,"",null,null,null,null,""]
[null,null,null,"",null,null,null,null,null,null,null,null,null,null,null,null,null,null,null,null,"",null,null,null,null,""]
[null,null,null,"",null,null,null,null,null,null,null,null,null,null,null,null,null,null,null,null,"",null,null,null,null,""]
[null,null,null,"",null,null,null,null,null,null,null,null,null,null,null,null,null,null,null,null,"",null,null,null,null,""]
[null,null,null,"",null,null,null,null,null,null,null,null,null,null,null,null,null,null,null,null,"",null,null,null,null,""]
[null,null,null,"",null,null,null,null,null,null,null,null,null,null,null,null,null,null,null,null,"",null,null,null,null,""]
[null,null,null,"",null,null,null,null,null,null,null,null,null,null,null,null,null,null,null,null,"",null,null,null,null,""]
[null,null,null,"",null,null,null,null,null,null,null,null,null,null,null,null,null,null,null,null,"",null,null,null,null,""]
[null,null,null,"",null,null,null,null,null,null,null,null,null,null,null,null,null,null,null,null,"",null,null,null,null,""]
[null,null,null,"",null,null,null,null,null,null,null,null,null,null,null,null,null,null,null,null,"",null,null,null,null,""]
[null,null,null,"",null,null,null,null,null,null,null,null,null,null,null,null,null,null,null,null,"",null,null,null,null,""]
[null,null,null,"",null,null,null,null,null,null,null,null,null,null,null,null,null,null,null,null,"",null,null,null,null,""]
[null,null,null,"",null,null,null,null,null,null,null,null,null,null,null,null,null,null,null,null,"",null,null,null,null,""]
[null,null,null,"",null,null,null,null,null,null,null,null,null,null,null,null,null,null,null,null,"",null,null,null,null,""]
[null,null,null,"",null,null,null,null,null,null,null,null,null,null,null,null,null,null,null,null,"",null,null,null,null,""]
[null,null,null,"",null,null,null,null,null,null,null,null,null,null,null,null,null,null,null,null,"",null,null,null,null,""]
[null,null,null,"",null,null,null,null,null,null,null,null,null,null,null,null,null,null,null,null,"",null,null,null,null,""]
[null,null,null,"",null,null,null,null,null,null,null,null,null,null,null,null,null,null,null,null,"",null,null,null,null,""]
[null,null,null,"",null,null,null,null,null,null,null,null,null,null,null,null,null,null,null,null,"",null,null,null,null,""]
[null,null,null,"",null,null,null,null,null,null,null,null,null,null,null,null,null,null,null,null,"",null,null,null,null,""]
[null,null,null,"",null,null,null,null,null,null,null,null,null,null,null,null,null,null,null,null,"",null,null,null,null,""]
[null,null,null,"",null,null,null,null,null,null,null,null,null,null,null,null,null,null,null,null,"",null,null,null,null,""]
[null,null,null,"",null,null,null,null,null,null,null,null,null,null,null,null,null,null,null,null,"",null,null,null,null,""]
[null,null,null,"",null,null,null,null,null,null,null,null,null,null,null,null,null,null,null,null,"",null,null,null,null,""]
[null,null,null,"",null,null,null,null,null,null,null,null,null,null,null,null,null,null,null,null,"",null,null,null,null,""]
[null,null,null,"",null,null,null,null,null,null,null,null,null,null,null,null,null,null,null,null,"",null,null,null,null,""]
[null,null,null,"",null,null,null,null,null,null,null,null,null,null,null,null,null,null,null,null,"",null,null,null,null,""]
[null,null,null,"",null,null,null,null,null,null,null,null,null,null,null,null,null,null,null,null,"",null,null,null,null,""]
[null,null,null,"",null,null,null,null,null,null,null,null,null,null,null,null,null,null,null,null,"",null,null,null,null,""]
[null,null,null,"",null,null,null,null,null,null,null,null,null,null,null,null,null,null,null,null,"",null,null,null,null,""]
[null,null,null,"",null,null,null,null,null,null,null,null,null,null,null,null,null,null,null,null,"",null,null,null,null,""]
[null,null,null,"",null,null,null,null,null,null,null,null,null,null,null,null,null,null,null,null,"",null,null,null,null,""]
[null,null,null,"",null,null,null,null,null,null,null,null,null,null,null,null,null,null,null,null,"",null,null,null,null,""]
[null,null,null,"",null,null,null,null,null,null,null,null,null,null,null,null,null,null,null,null,"",null,null,null,null,""]
[null,null,null,"",null,null,null,null,null,null,null,null,null,null,null,null,null,null,null,null,"",null,null,null,null,""]
[null,null,null,"",null,null,null,null,null,null,null,null,null,null,null,null,null,null,null,null,"",null,null,null,null,""]
[null,null,null,"",null,null,null,null,null,null,null,null,null,null,null,null,null,null,null,null,"",null,null,null,null,""]
[null,null,null,"",null,null,null,null,null,null,null,null,null,null,null,null,null,null,null,null,"",null,null,null,null,""]
[null,null,null,"",null,null,null,null,null,null,null,null,null,null,null,null,null,null,null,null,"",null,null,null,null,""]
[null,null,null,"",null,null,null,null,null,null,null,null,null,null,null,null,null,null,null,null,"",null,null,null,null,""]
[null,null,null,"",null,null,null,null,null,null,null,null,null,null,null,null,null,null,null,null,{"$f":"IF(R69=0,\"\",ROUND(P69*R69,0))","v":""},null,null,null,null,{"$f":"IF(U69=\"\",\"\",IF(SUM(A$5:A$1048576)=0,\"\",IF(A69=0,\"コード入力\",\"\")))","v":""}]
[null,null,null,{"$f":"IF(E70=\"\",\"\",\"～\")","v":""},null,null,null,null,null,null,null,null,null,null,null,null,null,null,null,null,"",null,null,null,null,""]
[null,null,null,"",null,null,null,null,null,null,null,null,null,null,null,null,null,null,null,null,"",null,null,null,null,""]
[null,null,null,"",null,null,null,null,null,null,null,null,null,null,null,null,null,null,null,null,"",null,null,null,null,""]
[null,null,null,"",null,null,null,null,null,null,null,null,null,null,null,null,null,null,null,null,"",null,null,null,null,""]
[null,null,null,"",null,null,null,null,null,null,null,null,null,null,null,null,null,null,null,null,"",null,null,null,null,""]
[null,null,null,"",null,null,null,null,null,null,null,null,null,null,null,null,null,null,null,null,"",null,null,null,null,""]
[null,null,null,"",null,null,null,null,null,null,null,null,null,null,null,null,null,null,null,null,"",null,null,null,null,""]
[null,null,null,"",null,null,null,null,null,null,null,null,null,null,null,null,null,null,null,null,"",null,null,null,null,""]
[null,null,null,"",null,null,null,null,null,null,null,null,null,null,null,null,null,null,null,null,"",null,null,null,null,""]
[null,null,null,"",null,null,null,null,null,null,null,null,null,null,null,null,null,null,null,null,"",null,null,null,null,""]
[null,null,null,"",null,null,null,null,null,null,null,null,null,null,null,null,null,null,null,null,"",null,null,null,null,""]
[null,null,null,"",null,null,null,null,null,null,null,null,null,null,null,null,null,null,null,null,"",null,null,null,null,""]
[null,null,null,"",null,null,null,null,null,null,null,null,null,null,null,null,null,null,null,null,"",null,null,null,null,""]
[null,null,null,"",null,null,null,null,null,null,null,null,null,null,null,null,null,null,null,null,"",null,null,null,null,""]
[null,null,null,"",null,null,null,null,null,null,null,null,null,null,null,null,null,null,null,null,"",null,null,null,null,""]
[null,null,null,"",null,null,null,null,null,null,null,null,null,null,null,null,null,null,null,null,"",null,null,null,null,""]
[null,null,null,"",null,null,null,null,null,null,null,null,null,null,null,null,null,null,null,null,"",null,null,null,null,""]
[null,null,null,"",null,null,null,null,null,null,null,null,null,null,null,null,null,null,null,null,"",null,null,null,null,""]
[null,null,null,"",null,null,null,null,null,null,null,null,null,null,null,null,null,null,null,null,"",null,null,null,null,""]
[null,null,null,"",null,null,null,null,null,null,null,null,null,null,null,null,null,null,null,null,"",null,null,null,null,""]
[null,null,null,"",null,null,null,null,null,null,null,null,null,null,null,null,null,null,null,null,"",null,null,null,null,""]
[null,null,null,"",null,null,null,null,null,null,null,null,null,null,null,null,null,null,null,null,"",null,null,null,null,""]
[null,null,null,"",null,null,null,null,null,null,null,null,null,null,null,null,null,null,null,null,"",null,null,null,null,""]
[null,null,null,"",null,null,null,null,null,null,null,null,null,null,null,null,null,null,null,null,"",null,null,null,null,""]
[null,null,null,"",null,null,null,null,null,null,null,null,null,null,null,null,null,null,null,null,"",null,null,null,null,""]
[null,null,null,"",null,null,null,null,null,null,null,null,null,null,null,null,null,null,null,null,"",null,null,null,null,""]
[null,null,null,"",null,null,null,null,null,null,null,null,null,null,null,null,null,null,null,null,"",null,null,null,null,""]
[null,null,null,"",null,null,null,null,null,null,null,null,null,null,null,null,null,null,null,null,"",null,null,null,null,""]
[null,null,null,"",null,null,null,null,null,null,null,null,null,null,null,null,null,null,null,null,"",null,null,null,null,""]
[null,null,null,"",null,null,null,null,null,null,null,null,null,null,null,null,null,null,null,null,"",null,null,null,null,""]
[null,null,null,"",null,null,null,null,null,null,null,null,null,null,null,null,null,null,null,null,"",null,null,null,null,""]
[null,null,null,"",null,null,null,null,null,null,null,null,null,null,null,null,null,null,null,null,"",null,null,null,null,""]
[null,null,null,"",null,null,null,null,null,null,null,null,null,null,null,null,null,null,null,null,"",null,null,null,null,""]
[null,null,null,"",null,null,null,null,null,null,null,null,null,null,null,null,null,null,null,null,"",null,null,null,null,""]
[null,null,null,"",null,null,null,null,null,null,null,null,null,null,null,null,null,null,null,null,"",null,null,null,null,""]
[null,null,null,"",null,null,null,null,null,null,null,null,null,null,null,null,null,null,null,null,"",null,null,null,null,""]
[null,null,null,"",null,null,null,null,null,null,null,null,null,null,null,null,null,null,null,null,"",null,null,null,null,""]
[null,null,null,"",null,null,null,null,null,null,null,null,null,null,null,null,null,null,null,null,"",null,null,null,null,""]
[null,null,null,"",null,null,null,null,null,null,null,null,null,null,null,null,null,null,null,null,"",null,null,null,null,""]
[null,null,null,"",null,null,null,null,null,null,null,null,null,null,null,null,null,null,null,null,"",null,null,null,null,""]
[null,null,null,"",null,null,null,null,null,null,null,null,null,null,null,null,null,null,null,null,"",null,null,null,null,""]
[null,null,null,"",null,null,null,null,null,null,null,null,null,null,null,null,null,null,null,null,"",null,null,null,null,""]
[null,null,null,"",null,null,null,null,null,null,null,null,null,null,null,null,null,null,null,null,"",null,null,null,null,""]
[null,null,null,"",null,null,null,null,null,null,null,null,null,null,null,null,null,null,null,null,"",null,null,null,null,""]
[null,null,null,"",null,null,null,null,null,null,null,null,null,null,null,null,null,null,null,null,"",null,null,null,null,""]
[null,null,null,"",null,null,null,null,null,null,null,null,null,null,null,null,null,null,null,null,"",null,null,null,null,""]
[null,null,null,"",null,null,null,null,null,null,null,null,null,null,null,null,null,null,null,null,"",null,null,null,null,""]
[null,null,null,"",null,null,null,null,null,null,null,null,null,null,null,null,null,null,null,null,"",null,null,null,null,""]
[null,null,null,"",null,null,null,null,null,null,null,null,null,null,null,null,null,null,null,null,"",null,null,null,null,""]
[null,null,null,"",null,null,null,null,null,null,null,null,null,null,null,null,null,null,null,null,"",null,null,null,null,""]
[null,null,null,"",null,null,null,null,null,null,null,null,null,null,null,null,null,null,null,null,"",null,null,null,null,""]
[null,null,null,"",null,null,null,null,null,null,null,null,null,null,null,null,null,null,null,null,"",null,null,null,null,""]
[null,null,null,"",null,null,null,null,null,null,null,null,null,null,null,null,null,null,null,null,"",null,null,null,null,""]
[null,null,null,"",null,null,null,null,null,null,null,null,null,null,null,null,null,null,null,null,"",null,null,null,null,""]
[null,null,null,"",null,null,null,null,null,null,null,null,null,null,null,null,null,null,null,null,"",null,null,null,null,""]
[null,null,null,"",null,null,null,null,null,null,null,null,null,null,null,null,null,null,null,null,"",null,null,null,null,""]
[null,null,null,"",null,null,null,null,null,null,null,null,null,null,null,null,null,null,null,null,"",null,null,null,null,""]
[null,null,null,"",null,null,null,null,null,null,null,null,null,null,null,null,null,null,null,null,"",null,null,null,null,""]
[null,null,null,"",null,null,null,null,null,null,null,null,null,null,null,null,null,null,null,null,"",null,null,null,null,""]
[null,null,null,"",null,null,null,null,null,null,null,null,null,null,null,null,null,null,null,null,"",null,null,null,null,""]
[null,null,null,"",null,null,null,null,null,null,null,null,null,null,null,null,null,null,null,null,"",null,null,null,null,""]
[null,null,null,"",null,null,null,null,null,null,null,null,null,null,null,null,null,null,null,null,"",null,null,null,null,""]
[null,null,null,"",null,null,null,null,null,null,null,null,null,null,null,null,null,null,null,null,"",null,null,null,null,""]
[null,null,null,"",null,null,null,null,null,null,null,null,null,null,null,null,null,null,null,null,{"$f":"IF(R133=0,\"\",ROUND(P133*R133,0))","v":""},null,null,null,null,{"$f":"IF(U133=\"\",\"\",IF(SUM(A$5:A$1048576)=0,\"\",IF(A133=0,\"コード入力\",\"\")))","v":""}]
[null,null,null,{"$f":"IF(E134=\"\",\"\",\"～\")","v":""},null,null,null,null,null,null,null,null,null,null,null,null,null,null,null,null,"",null,null,null,null,""]
[null,null,null,"",null,null,null,null,null,null,null,null,null,null,null,null,null,null,null,null,"",null,null,null,null,""]
[null,null,null,"",null,null,null,null,null,null,null,null,null,null,null,null,null,null,null,null,"",null,null,null,null,""]
[null,null,null,"",null,null,null,null,null,null,null,null,null,null,null,null,null,null,null,null,"",null,null,null,null,""]
[null,null,null,"",null,null,null,null,null,null,null,null,null,null,null,null,null,null,null,null,"",null,null,null,null,""]
[null,null,null,"",null,null,null,null,null,null,null,null,null,null,null,null,null,null,null,null,"",null,null,null,null,""]
[null,null,null,"",null,null,null,null,null,null,null,null,null,null,null,null,null,null,null,null,"",null,null,null,null,""]
[null,null,null,"",null,null,null,null,null,null,null,null,null,null,null,null,null,null,null,null,"",null,null,null,null,""]
[null,null,null,"",null,null,null,null,null,null,null,null,null,null,null,null,null,null,null,null,"",null,null,null,null,""]
[null,null,null,"",null,null,null,null,null,null,null,null,null,null,null,null,null,null,null,null,"",null,null,null,null,""]
[null,null,null,"",null,null,null,null,null,null,null,null,null,null,null,null,null,null,null,null,"",null,null,null,null,""]
[null,null,null,"",null,null,null,null,null,null,null,null,null,null,null,null,null,null,null,null,"",null,null,null,null,""]
[null,null,null,"",null,null,null,null,null,null,null,null,null,null,null,null,null,null,null,null,"",null,null,null,null,""]
[null,null,null,"",null,null,null,null,null,null,null,null,null,null,null,null,null,null,null,null,"",null,null,null,null,""]
[null,null,null,"",null,null,null,null,null,null,null,null,null,null,null,null,null,null,null,null,"",null,null,null,null,""]
[null,null,null,"",null,null,null,null,null,null,null,null,null,null,null,null,null,null,null,null,"",null,null,null,null,""]
[null,null,null,"",null,null,null,null,null,null,null,null,null,null,null,null,null,null,null,null,"",null,null,null,null,""]
[null,null,null,"",null,null,null,null,null,null,null,null,null,null,null,null,null,null,null,null,"",null,null,null,null,""]
[null,null,null,"",null,null,null,null,null,null,null,null,null,null,null,null,null,null,null,null,"",null,null,null,null,""]
[null,null,null,"",null,null,null,null,null,null,null,null,null,null,null,null,null,null,null,null,"",null,null,null,null,""]
[null,null,null,"",null,null,null,null,null,null,null,null,null,null,null,null,null,null,null,null,"",null,null,null,null,""]
[null,null,null,"",null,null,null,null,null,null,null,null,null,null,null,null,null,null,null,null,"",null,null,null,null,""]
[null,null,null,"",null,null,null,null,null,null,null,null,null,null,null,null,null,null,null,null,"",null,null,null,null,""]
[null,null,null,"",null,null,null,null,null,null,null,null,null,null,null,null,null,null,null,null,"",null,null,null,null,""]
[null,null,null,"",null,null,null,null,null,null,null,null,null,null,null,null,null,null,null,null,"",null,null,null,null,""]
[null,null,null,"",null,null,null,null,null,null,null,null,null,null,null,null,null,null,null,null,"",null,null,null,null,""]
[null,null,null,"",null,null,null,null,null,null,null,null,null,null,null,null,null,null,null,null,"",null,null,null,null,""]
[null,null,null,"",null,null,null,null,null,null,null,null,null,null,null,null,null,null,null,null,"",null,null,null,null,""]
[null,null,null,"",null,null,null,null,null,null,null,null,null,null,null,null,null,null,null,null,"",null,null,null,null,""]
[null,null,null,"",null,null,null,null,null,null,null,null,null,null,null,null,null,null,null,null,"",null,null,null,null,""]
[null,null,null,"",null,null,null,null,null,null,null,null,null,null,null,null,null,null,null,null,"",null,null,null,null,""]
[null,null,null,"",null,null,null,null,null,null,null,null,null,null,null,null,null,null,null,null,"",null,null,null,null,""]
[null,null,null,"",null,null,null,null,null,null,null,null,null,null,null,null,null,null,null,null,"",null,null,null,null,""]
[null,null,null,"",null,null,null,null,null,null,null,null,null,null,null,null,null,null,null,null,"",null,null,null,null,""]
[null,null,null,"",null,null,null,null,null,null,null,null,null,null,null,null,null,null,null,null,"",null,null,null,null,""]
[null,null,null,"",null,null,null,null,null,null,null,null,null,null,null,null,null,null,null,null,"",null,null,null,null,""]
[null,null,null,"",null,null,null,null,null,null,null,null,null,null,null,null,null,null,null,null,"",null,null,null,null,""]
[null,null,null,"",null,null,null,null,null,null,null,null,null,null,null,null,null,null,null,null,"",null,null,null,null,""]
[null,null,null,"",null,null,null,null,null,null,null,null,null,null,null,null,null,null,null,null,"",null,null,null,null,""]
[null,null,null,"",null,null,null,null,null,null,null,null,null,null,null,null,null,null,null,null,"",null,null,null,null,""]
[null,null,null,"",null,null,null,null,null,null,null,null,null,null,null,null,null,null,null,null,"",null,null,null,null,""]
[null,null,null,"",null,null,null,null,null,null,null,null,null,null,null,null,null,null,null,null,"",null,null,null,null,""]
[null,null,null,"",null,null,null,null,null,null,null,null,null,null,null,null,null,null,null,null,"",null,null,null,null,""]
[null,null,null,"",null,null,null,null,null,null,null,null,null,null,null,null,null,null,null,null,"",null,null,null,null,""]
[null,null,null,"",null,null,null,null,null,null,null,null,null,null,null,null,null,null,null,null,"",null,null,null,null,""]
[null,null,null,"",null,null,null,null,null,null,null,null,null,null,null,null,null,null,null,null,"",null,null,null,null,""]
[null,null,null,"",null,null,null,null,null,null,null,null,null,null,null,null,null,null,null,null,"",null,null,null,null,""]
[null,null,null,"",null,null,null,null,null,null,null,null,null,null,null,null,null,null,null,null,"",null,null,null,null,""]
[null,null,null,"",null,null,null,null,null,null,null,null,null,null,null,null,null,null,null,null,"",null,null,null,null,""]
[null,null,null,"",null,null,null,null,null,null,null,null,null,null,null,null,null,null,null,null,"",null,null,null,null,""]
[null,null,null,"",null,null,null,null,null,null,null,null,null,null,null,null,null,null,null,null,"",null,null,null,null,""]
[null,null,null,"",null,null,null,null,null,null,null,null,null,null,null,null,null,null,null,null,"",null,null,null,null,""]
[null,null,null,"",null,null,null,null,null,null,null,null,null,null,null,null,null,null,null,null,"",null,null,null,null,""]
[null,null,null,"",null,null,null,null,null,null,null,null,null,null,null,null,null,null,null,null,"",null,null,null,null,""]
[null,null,null,"",null,null,null,null,null,null,null,null,null,null,null,null,null,null,null,null,"",null,null,null,null,""]
[null,null,null,"",null,null,null,null,null,null,null,null,null,null,null,null,null,null,null,null,"",null,null,null,null,""]
[null,null,null,"",null,null,null,null,null,null,null,null,null,null,null,null,null,null,null,null,"",null,null,null,null,""]
[null,null,null,"",null,null,null,null,null,null,null,null,null,null,null,null,null,null,null,null,"",null,null,null,null,""]
[null,null,null,"",null,null,null,null,null,null,null,null,null,null,null,null,null,null,null,null,"",null,null,null,null,""]
[null,null,null,"",null,null,null,null,null,null,null,null,null,null,null,null,null,null,null,null,"",null,null,null,null,""]
[null,null,null,"",null,null,null,null,null,null,null,null,null,null,null,null,null,null,null,null,"",null,null,null,null,""]
[null,null,null,"",null,null,null,null,null,null,null,null,null,null,null,null,null,null,null,null,"",null,null,null,null,""]
[null,null,null,"",null,null,null,null,null,null,null,null,null,null,null,null,null,null,null,null,"",null,null,null,null,""]
[null,null,null,"",null,null,null,null,null,null,null,null,null,null,null,null,null,null,null,null,{"$f":"IF(R197=0,\"\",ROUND(P197*R197,0))","v":""},null,null,null,null,{"$f":"IF(U197=\"\",\"\",IF(SUM(A$5:A$1048576)=0,\"\",IF(A197=0,\"コード入力\",\"\")))","v":""}]
[null,null,null,{"$f":"IF(E198=\"\",\"\",\"～\")","v":""},null,null,null,null,null,null,null,null,null,null,null,null,null,null,null,null,"",null,null,null,null,""]
[null,null,null,"",null,null,null,null,null,null,null,null,null,null,null,null,null,null,null,null,"",null,null,null,null,""]
[null,null,null,"",null,null,null,null,null,null,null,null,null,null,null,null,null,null,null,null,"",null,null,null,null,""]
[null,null,null,"",null,null,null,null,null,null,null,null,null,null,null,null,null,null,null,null,"",null,null,null,null,""]
[null,null,null,"",null,null,null,null,null,null,null,null,null,null,null,null,null,null,null,null,"",null,null,null,null,""]
[null,null,null,"",null,null,null,null,null,null,null,null,null,null,null,null,null,null,null,null,"",null,null,null,null,""]
[null,null,null,"",null,null,null,null,null,null,null,null,null,null,null,null,null,null,null,null,"",null,null,null,null,""]
[null,null,null,"",null,null,null,null,null,null,null,null,null,null,null,null,null,null,null,null,"",null,null,null,null,""]
[null,null,null,"",null,null,null,null,null,null,null,null,null,null,null,null,null,null,null,null,"",null,null,null,null,""]
[null,null,null,"",null,null,null,null,null,null,null,null,null,null,null,null,null,null,null,null,"",null,null,null,null,""]
[null,null,null,"",null,null,null,null,null,null,null,null,null,null,null,null,null,null,null,null,"",null,null,null,null,""]
[null,null,null,"",null,null,null,null,null,null,null,null,null,null,null,null,null,null,null,null,"",null,null,null,null,""]
[null,null,null,"",null,null,null,null,null,null,null,null,null,null,null,null,null,null,null,null,"",null,null,null,null,""]
[null,null,null,"",null,null,null,null,null,null,null,null,null,null,null,null,null,null,null,null,"",null,null,null,null,""]
[null,null,null,"",null,null,null,null,null,null,null,null,null,null,null,null,null,null,null,null,"",null,null,null,null,""]
[null,null,null,"",null,null,null,null,null,null,null,null,null,null,null,null,null,null,null,null,"",null,null,null,null,""]
[null,null,null,"",null,null,null,null,null,null,null,null,null,null,null,null,null,null,null,null,"",null,null,null,null,""]
[null,null,null,"",null,null,null,null,null,null,null,null,null,null,null,null,null,null,null,null,"",null,null,null,null,""]
[null,null,null,"",null,null,null,null,null,null,null,null,null,null,null,null,null,null,null,null,"",null,null,null,null,""]
[null,null,null,"",null,null,null,null,null,null,null,null,null,null,null,null,null,null,null,null,"",null,null,null,null,""]
[null,null,null,"",null,null,null,null,null,null,null,null,null,null,null,null,null,null,null,null,"",null,null,null,null,""]
[null,null,null,"",null,null,null,null,null,null,null,null,null,null,null,null,null,null,null,null,"",null,null,null,null,""]
[null,null,null,"",null,null,null,null,null,null,null,null,null,null,null,null,null,null,null,null,"",null,null,null,null,""]
[null,null,null,"",null,null,null,null,null,null,null,null,null,null,null,null,null,null,null,null,"",null,null,null,null,""]
[null,null,null,"",null,null,null,null,null,null,null,null,null,null,null,null,null,null,null,null,"",null,null,null,null,""]
[null,null,null,"",null,null,null,null,null,null,null,null,null,null,null,null,null,null,null,null,"",null,null,null,null,""]
[null,null,null,"",null,null,null,null,null,null,null,null,null,null,null,null,null,null,null,null,"",null,null,null,null,""]
[null,null,null,"",null,null,null,null,null,null,null,null,null,null,null,null,null,null,null,null,"",null,null,null,null,""]
[null,null,null,"",null,null,null,null,null,null,null,null,null,null,null,null,null,null,null,null,"",null,null,null,null,""]
[null,null,null,"",null,null,null,null,null,null,null,null,null,null,null,null,null,null,null,null,{"$f":"IF(R227=0,\"\",ROUND(P227*R227,0))","v":""},null,null,null,null,""]
[null,null,null,"",null,null,null,null,null,null,null,null,null,null,null,null,null,null,null,null,"",null,null,null,null,""]
[null,null,null,"",null,null,null,null,null,null,null,null,null,null,null,null,null,null,null,null,"",null,null,null,null,""]
[null,null,null,"",null,null,null,null,null,null,null,null,null,null,null,null,null,null,null,null,"",null,null,null,null,""]
[null,null,null,"",null,null,null,null,null,null,null,null,null,null,null,null,null,null,null,null,"",null,null,null,null,""]
[null,null,null,"",null,null,null,null,null,null,null,null,null,null,null,null,null,null,null,null,"",null,null,null,null,""]
[null,null,null,"",null,null,null,null,null,null,null,null,null,null,null,null,null,null,null,null,"",null,null,null,null,""]
[null,null,null,"",null,null,null,null,null,null,null,null,null,null,null,null,null,null,null,null,"",null,null,null,null,""]
[null,null,null,"",null,null,null,null,null,null,null,null,null,null,null,null,null,null,null,null,"",null,null,null,null,""]
[null,null,null,"",null,null,null,null,null,null,null,null,null,null,null,null,null,null,null,null,"",null,null,null,null,""]
[null,null,null,"",null,null,null,null,null,null,null,null,null,null,null,null,null,null,null,null,"",null,null,null,null,""]
[null,null,null,"",null,null,null,null,null,null,null,null,null,null,null,null,null,null,null,null,"",null,null,null,null,""]
[null,null,null,"",null,null,null,null,null,null,null,null,null,null,null,null,null,null,null,null,"",null,null,null,null,""]
[null,null,null,"",null,null,null,null,null,null,null,null,null,null,null,null,null,null,null,null,"",null,null,null,null,""]
[null,null,null,"",null,null,null,null,null,null,null,null,null,null,null,null,null,null,null,null,"",null,null,null,null,""]
[null,null,null,"",null,null,null,null,null,null,null,null,null,null,null,null,null,null,null,null,"",null,null,null,null,""]
[null,null,null,"",null,null,null,null,null,null,null,null,null,null,null,null,null,null,null,null,"",null,null,null,null,""]
[null,null,null,"",null,null,null,null,null,null,null,null,null,null,null,null,null,null,null,null,"",null,null,null,null,""]
[null,null,null,"",null,null,null,null,null,null,null,null,null,null,null,null,null,null,null,null,"",null,null,null,null,""]
[null,null,null,"",null,null,null,null,null,null,null,null,null,null,null,null,null,null,null,null,"",null,null,null,null,""]
[null,null,null,"",null,null,null,null,null,null,null,null,null,null,null,null,null,null,null,null,"",null,null,null,null,""]
[null,null,null,"",null,null,null,null,null,null,null,null,null,null,null,null,null,null,null,null,"",null,null,null,null,""]
[null,null,null,"",null,null,null,null,null,null,null,null,null,null,null,null,null,null,null,null,"",null,null,null,null,""]
[null,null,null,"",null,null,null,null,null,null,null,null,null,null,null,null,null,null,null,null,"",null,null,null,null,""]
[null,null,null,"",null,null,null,null,null,null,null,null,null,null,null,null,null,null,null,null,"",null,null,null,null,""]
[null,null,null,"",null,null,null,null,null,null,null,null,null,null,null,null,null,null,null,null,"",null,null,null,null,""]
[null,null,null,"",null,null,null,null,null,null,null,null,null,null,null,null,null,null,null,null,"",null,null,null,null,""]
[null,null,null,"",null,null,null,null,null,null,null,null,null,null,null,null,null,null,null,null,"",null,null,null,null,""]
[null,null,null,"",null,null,null,null,null,null,null,null,null,null,null,null,null,null,null,null,"",null,null,null,null,""]
[null,null,null,"",null,null,null,null,null,null,null,null,null,null,null,null,null,null,null,null,"",null,null,null,null,""]
[null,null,null,"",null,null,null,null,null,null,null,null,null,null,null,null,null,null,null,null,"",null,null,null,null,""]
[null,null,null,"",null,null,null,null,null,null,null,null,null,null,null,null,null,null,null,null,"",null,null,null,null,""]
[null,null,null,"",null,null,null,null,null,null,null,null,null,null,null,null,null,null,null,null,"",null,null,null,null,""]
[null,null,null,"",null,null,null,null,null,null,null,null,null,null,null,null,null,null,null,null,"",null,null,null,null,""]
[null,null,null,"",null,null,null,null,null,null,null,null,null,null,null,null,null,null,null,null,"",null,null,null,null,{"$f":"IF(U261=\"\",\"\",IF(SUM(A$5:A$1048576)=0,\"\",IF(A261=0,\"コード入力\",\"\")))","v":""}]
[null,null,null,{"$f":"IF(E262=\"\",\"\",\"～\")","v":""},null,null,null,null,null,null,null,null,null,null,null,null,null,null,null,null,"",null,null,null,null,""]
[null,null,null,"",null,null,null,null,null,null,null,null,null,null,null,null,null,null,null,null,"",null,null,null,null,""]
[null,null,null,"",null,null,null,null,null,null,null,null,null,null,null,null,null,null,null,null,"",null,null,null,null,""]
[null,null,null,"",null,null,null,null,null,null,null,null,null,null,null,null,null,null,null,null,"",null,null,null,null,""]
[null,null,null,"",null,null,null,null,null,null,null,null,null,null,null,null,null,null,null,null,"",null,null,null,null,""]
[null,null,null,"",null,null,null,null,null,null,null,null,null,null,null,null,null,null,null,null,"",null,null,null,null,""]
[null,null,null,"",null,null,null,null,null,null,null,null,null,null,null,null,null,null,null,null,"",null,null,null,null,""]
[null,null,null,"",null,null,null,null,null,null,null,null,null,null,null,null,null,null,null,null,"",null,null,null,null,""]
[null,null,null,"",null,null,null,null,null,null,null,null,null,null,null,null,null,null,null,null,"",null,null,null,null,""]
[null,null,null,"",null,null,null,null,null,null,null,null,null,null,null,null,null,null,null,null,"",null,null,null,null,""]
[null,null,null,"",null,null,null,null,null,null,null,null,null,null,null,null,null,null,null,null,"",null,null,null,null,""]
[null,null,null,"",null,null,null,null,null,null,null,null,null,null,null,null,null,null,null,null,"",null,null,null,null,""]
[null,null,null,"",null,null,null,null,null,null,null,null,null,null,null,null,null,null,null,null,"",null,null,null,null,""]
[null,null,null,"",null,null,null,null,null,null,null,null,null,null,null,null,null,null,null,null,"",null,null,null,null,""]
[null,null,null,"",null,null,null,null,null,null,null,null,null,null,null,null,null,null,null,null,"",null,null,null,null,""]
[null,null,null,"",null,null,null,null,null,null,null,null,null,null,null,null,null,null,null,null,"",null,null,null,null,""]
[null,null,null,"",null,null,null,null,null,null,null,null,null,null,null,null,null,null,null,null,"",null,null,null,null,""]
[null,null,null,"",null,null,null,null,null,null,null,null,null,null,null,null,null,null,null,null,"",null,null,null,null,""]
[null,null,null,"",null,null,null,null,null,null,null,null,null,null,null,null,null,null,null,null,"",null,null,null,null,""]
[null,null,null,"",null,null,null,null,null,null,null,null,null,null,null,null,null,null,null,null,"",null,null,null,null,""]
[null,null,null,"",null,null,null,null,null,null,null,null,null,null,null,null,null,null,null,null,"",null,null,null,null,""]
[null,null,null,"",null,null,null,null,null,null,null,null,null,null,null,null,null,null,null,null,"",null,null,null,null,""]
[null,null,null,"",null,null,null,null,null,null,null,null,null,null,null,null,null,null,null,null,"",null,null,null,null,""]
[null,null,null,"",null,null,null,null,null,null,null,null,null,null,null,null,null,null,null,null,"",null,null,null,null,""]
[null,null,null,"",null,null,null,null,null,null,null,null,null,null,null,null,null,null,null,null,"",null,null,null,null,""]
[null,null,null,"",null,null,null,null,null,null,null,null,null,null,null,null,null,null,null,null,"",null,null,null,null,""]
[null,null,null,"",null,null,null,null,null,null,null,null,null,null,null,null,null,null,null,null,"",null,null,null,null,""]
[null,null,null,"",null,null,null,null,null,null,null,null,null,null,null,null,null,null,null,null,"",null,null,null,null,""]
[null,null,null,"",null,null,null,null,null,null,null,null,null,null,null,null,null,null,null,null,"",null,null,null,null,""]
[null,null,null,"",null,null,null,null,null,null,null,null,null,null,null,null,null,null,null,null,{"$f":"IF(R291=0,\"\",ROUND(P291*R291,0))","v":""},null,null,null,null,""]
[null,null,null,"",null,null,null,null,null,null,null,null,null,null,null,null,null,null,null,null,"",null,null,null,null,""]
[null,null,null,"",null,null,null,null,null,null,null,null,null,null,null,null,null,null,null,null,"",null,null,null,null,""]
[null,null,null,"",null,null,null,null,null,null,null,null,null,null,null,null,null,null,null,null,"",null,null,null,null,""]
[null,null,null,"",null,null,null,null,null,null,null,null,null,null,null,null,null,null,null,null,"",null,null,null,null,""]
[null,null,null,"",null,null,null,null,null,null,null,null,null,null,null,null,null,null,null,null,"",null,null,null,null,""]
[null,null,null,"",null,null,null,null,null,null,null,null,null,null,null,null,null,null,null,null,"",null,null,null,null,""]
[null,null,null,"",null,null,null,null,null,null,null,null,null,null,null,null,null,null,null,null,"",null,null,null,null,""]
[null,null,null,"",null,null,null,null,null,null,null,null,null,null,null,null,null,null,null,null,"",null,null,null,null,""]
[null,null,null,"",null,null,null,null,null,null,null,null,null,null,null,null,null,null,null,null,"",null,null,null,null,""]
[null,null,null,"",null,null,null,null,null,null,null,null,null,null,null,null,null,null,null,null,"",null,null,null,null,""]
[null,null,null,"",null,null,null,null,null,null,null,null,null,null,null,null,null,null,null,null,"",null,null,null,null,""]
[null,null,null,"",null,null,null,null,null,null,null,null,null,null,null,null,null,null,null,null,"",null,null,null,null,""]
[null,null,null,"",null,null,null,null,null,null,null,null,null,null,null,null,null,null,null,null,"",null,null,null,null,""]
[null,null,null,"",null,null,null,null,null,null,null,null,null,null,null,null,null,null,null,null,"",null,null,null,null,""]
[null,null,null,"",null,null,null,null,null,null,null,null,null,null,null,null,null,null,null,null,"",null,null,null,null,""]
[null,null,null,"",null,null,null,null,null,null,null,null,null,null,null,null,null,null,null,null,"",null,null,null,null,""]
[null,null,null,"",null,null,null,null,null,null,null,null,null,null,null,null,null,null,null,null,"",null,null,null,null,""]
[null,null,null,"",null,null,null,null,null,null,null,null,null,null,null,null,null,null,null,null,"",null,null,null,null,""]
[null,null,null,"",null,null,null,null,null,null,null,null,null,null,null,null,null,null,null,null,"",null,null,null,null,""]
[null,null,null,"",null,null,null,null,null,null,null,null,null,null,null,null,null,null,null,null,"",null,null,null,null,""]
[null,null,null,"",null,null,null,null,null,null,null,null,null,null,null,null,null,null,null,null,"",null,null,null,null,""]
[null,null,null,"",null,null,null,null,null,null,null,null,null,null,null,null,null,null,null,null,"",null,null,null,null,""]
[null,null,null,"",null,null,null,null,null,null,null,null,null,null,null,null,null,null,null,null,"",null,null,null,null,""]
[null,null,null,"",null,null,null,null,null,null,null,null,null,null,null,null,null,null,null,null,"",null,null,null,null,""]
[null,null,null,"",null,null,null,null,null,null,null,null,null,null,null,null,null,null,null,null,"",null,null,null,null,""]
[null,null,null,"",null,null,null,null,null,null,null,null,null,null,null,null,null,null,null,null,"",null,null,null,null,""]
[null,null,null,{"$f":"IF(E318=\"\",\"\",\"～\")","v":""},null,null,null,null,null,null,null,null,null,null,null,null,null,null,null,null,{"$f":"IF(R318=0,\"\",ROUND(P318*R318,0))","v":""},null,null,null,null,""]
[null,null,null,"",null,null,null,null,null,null,null,null,null,null,null,null,null,null,null,null,"",null,null,null,null,""]
[null,null,null,"",null,null,null,null,null,null,null,null,null,null,null,null,null,null,null,null,"",null,null,null,null,""]
[null,null,null,"",null,null,null,null,null,null,null,null,null,null,null,null,null,null,null,null,"",null,null,null,null,""]
[null,null,null,"",null,null,null,null,null,null,null,null,null,null,null,null,null,null,null,null,"",null,null,null,null,""]
[null,null,null,"",null,null,null,null,null,null,null,null,null,null,null,null,null,null,null,null,"",null,null,null,null,""]
[null,null,null,"",null,null,null,null,null,null,null,null,null,null,null,null,null,null,null,null,"",null,null,null,null,""]
[null,null,null,"",null,null,null,null,null,null,null,null,null,null,null,null,null,null,null,null,"",null,null,null,null,{"$f":"IF(U325=\"\",\"\",IF(SUM(A$5:A$1048576)=0,\"\",IF(A325=0,\"コード入力\",\"\")))","v":""}]
[null,null,null,"",null,null,null,null,null,null,null,null,null,null,null,null,null,null,null,null,"",null,null,null,null,""]
[null,null,null,"",null,null,null,null,null,null,null,null,null,null,null,null,null,null,null,null,"",null,null,null,null,""]
[null,null,null,"",null,null,null,null,null,null,null,null,null,null,null,null,null,null,null,null,"",null,null,null,null,""]
[null,null,null,"",null,null,null,null,null,null,null,null,null,null,null,null,null,null,null,null,"",null,null,null,null,""]
[null,null,null,"",null,null,null,null,null,null,null,null,null,null,null,null,null,null,null,null,"",null,null,null,null,""]
[null,null,null,"",null,null,null,null,null,null,null,null,null,null,null,null,null,null,null,null,"",null,null,null,null,""]
[null,null,null,"",null,null,null,null,null,null,null,null,null,null,null,null,null,null,null,null,"",null,null,null,null,""]
[null,null,null,"",null,null,null,null,null,null,null,null,null,null,null,null,null,null,null,null,"",null,null,null,null,""]
[null,null,null,"",null,null,null,null,null,null,null,null,null,null,null,null,null,null,null,null,"",null,null,null,null,""]
[null,null,null,"",null,null,null,null,null,null,null,null,null,null,null,null,null,null,null,null,"",null,null,null,null,""]
[null,null,null,"",null,null,null,null,null,null,null,null,null,null,null,null,null,null,null,null,"",null,null,null,null,""]
[null,null,null,"",null,null,null,null,null,null,null,null,null,null,null,null,null,null,null,null,"",null,null,null,null,""]
[null,null,null,"",null,null,null,null,null,null,null,null,null,null,null,null,null,null,null,null,"",null,null,null,null,""]
[null,null,null,"",null,null,null,null,null,null,null,null,null,null,null,null,null,null,null,null,"",null,null,null,null,""]
[null,null,null,"",null,null,null,null,null,null,null,null,null,null,null,null,null,null,null,null,"",null,null,null,null,""]
[null,null,null,"",null,null,null,null,null,null,null,null,null,null,null,null,null,null,null,null,"",null,null,null,null,""]
[null,null,null,"",null,null,null,null,null,null,null,null,null,null,null,null,null,null,null,null,"",null,null,null,null,""]
[null,null,null,"",null,null,null,null,null,null,null,null,null,null,null,null,null,null,null,null,"",null,null,null,null,""]
[null,null,null,"",null,null,null,null,null,null,null,null,null,null,null,null,null,null,null,null,"",null,null,null,null,""]
[null,null,null,"",null,null,null,null,null,null,null,null,null,null,null,null,null,null,null,null,"",null,null,null,null,""]
[null,null,null,"",null,null,null,null,null,null,null,null,null,null,null,null,null,null,null,null,"",null,null,null,null,""]
[null,null,null,"",null,null,null,null,null,null,null,null,null,null,null,null,null,null,null,null,"",null,null,null,null,""]
[null,null,null,"",null,null,null,null,null,null,null,null,null,null,null,null,null,null,null,null,"",null,null,null,null,""]
[null,null,null,"",null,null,null,null,null,null,null,null,null,null,null,null,null,null,null,null,"",null,null,null,null,""]
[null,null,null,{"$f":"IF(E350=\"\",\"\",\"～\")","v":""},null,null,null,null,null,null,null,null,null,null,null,null,null,null,null,null,{"$f":"IF(R350=0,\"\",ROUND(P350*R350,0))","v":""},null,null,null,null,""]
[null,null,null,"",null,null,null,null,null,null,null,null,null,null,null,null,null,null,null,null,"",null,null,null,null,""]
[null,null,null,"",null,null,null,null,null,null,null,null,null,null,null,null,null,null,null,null,"",null,null,null,null,""]
[null,null,null,"",null,null,null,null,null,null,null,null,null,null,null,null,null,null,null,null,"",null,null,null,null,""]
[null,null,null,"",null,null,null,null,null,null,null,null,null,null,null,null,null,null,null,null,"",null,null,null,null,""]
[null,null,null,"",null,null,null,null,null,null,null,null,null,null,null,null,null,null,null,null,"",null,null,null,null,""]
[null,null,null,"",null,null,null,null,null,null,null,null,null,null,null,null,null,null,null,null,"",null,null,null,null,""]
[null,null,null,"",null,null,null,null,null,null,null,null,null,null,null,null,null,null,null,null,"",null,null,null,null,""]
[null,null,null,"",null,null,null,null,null,null,null,null,null,null,null,null,null,null,null,null,"",null,null,null,null,""]
[null,null,null,"",null,null,null,null,null,null,null,null,null,null,null,null,null,null,null,null,"",null,null,null,null,""]
[null,null,null,"",null,null,null,null,null,null,null,null,null,null,null,null,null,null,null,null,"",null,null,null,null,""]
[null,null,null,"",null,null,null,null,null,null,null,null,null,null,null,null,null,null,null,null,"",null,null,null,null,""]
[null,null,null,"",null,null,null,null,null,null,null,null,null,null,null,null,null,null,null,null,"",null,null,null,null,""]
[null,null,null,"",null,null,null,null,null,null,null,null,null,null,null,null,null,null,null,null,"",null,null,null,null,""]
[null,null,null,"",null,null,null,null,null,null,null,null,null,null,null,null,null,null,null,null,"",null,null,null,null,""]

{"sheet":"マクロ構文（注文外）","index":3,"n_rows":22,"n_cols":9,"rows_kept":22,"cut":false,"hidden":true,"merged":[]}
["Sub 請求書用紙プルダウン対応関数復活()",null,"Sub 請求書用紙小計検索関数復活()"]
[]
["Sheets(\"請求書用紙 (注文外)\").Select",null,"Sheets(\"請求書用紙 (注文外)\").Select"]
[]
["ActiveSheet.Unprotect",null,"ActiveSheet.Unprotect"]
["  'シート保護解除",null,"  'シート保護解除"]
[]
["'摘要に数式を入力",null,"摘要に数式を入力"]
["Range(\"L17\").Formula = \"＝IFERROR(LOOKUP($E17,$BO$4:$BP$73,$BP$4:$BP$73),””\"\")",null,"Range(\"AH17\").Formula = \"=IF(SUM(内訳書!A5:A1003)=0,SUM(内訳書!U5:X1003),SUMIF(内訳書!A:A,A17,内訳書!U:X))",null,null,null,null,"Range(\"AJ17\").Formula = \"=","IF(SUM(内訳書!A5:A1003)=0,SUM(内訳書!U5:X1003),SUMIF(内訳書!A:A,A17,内訳書!U:X))"]
["Range(\"L18\").Formula = \"＝IFERROR(LOOKUP($E18,$BO$4:$BP$73,$BP$4:$BP$73),””\"\")",null,"Range(\"AH18\").Formula = \"=SUMIF(内訳書!A:A,A18,内訳書!U:X)",null,null,null,null,"Range(\"AJ18\").Formula = \"=","SUMIF(内訳書!A:A,A18,内訳書!U:X)"]
["Range(\"L19\").Formula = \"＝IFERROR(LOOKUP($E19,$BO$4:$BP$73,$BP$4:$BP$73),””\"\")",null,"Range(\"AH19\").Formula = \"=SUMIF(内訳書!A:A,A19,内訳書!U:X)",null,null,null,null,"Range(\"AJ19\").Formula = \"=","SUMIF(内訳書!A:A,A19,内訳書!U:X)"]
["Range(\"L20\").Formula = \"＝IFERROR(LOOKUP($E20,$BO$4:$BP$73,$BP$4:$BP$73),””\"\")",null,"Range(\"AH20\").Formula = \"=SUMIF(内訳書!A:A,A20,内訳書!U:X)",null,null,null,null,"Range(\"AJ20\").Formula = \"=","SUMIF(内訳書!A:A,A20,内訳書!U:X)"]
["Range(\"L21\").Formula = \"＝IFERROR(LOOKUP($E21,$BO$4:$BP$73,$BP$4:$BP$73),””\"\")",null,"Range(\"AH21\").Formula = \"=SUMIF(内訳書!A:A,A21,内訳書!U:X)",null,null,null,null,"Range(\"AJ21\").Formula = \"=","SUMIF(内訳書!A:A,A21,内訳書!U:X)"]
["Range(\"L22\").Formula = \"＝IFERROR(LOOKUP($E22,$BO$4:$BP$73,$BP$4:$BP$73),””\"\")",null,"Range(\"AH22\").Formula = \"=SUMIF(内訳書!A:A,A22,内訳書!U:X)",null,null,null,null,"Range(\"AJ22\").Formula = \"=","SUMIF(内訳書!A:A,A22,内訳書!U:X)"]
["Range(\"L23\").Formula =\"＝IFERROR(LOOKUP($E23,$BO$4:$BP$73,$BP$4:$BP$73),””\"\")",null,"Range(\"AH23\").Formula = \"=SUMIF(内訳書!A:A,A23,内訳書!U:X)",null,null,null,null,"Range(\"AJ23\").Formula = \"=","SUMIF(内訳書!A:A,A23,内訳書!U:X)"]
["Range(\"L24\").Formula = \"＝IFERROR(LOOKUP($E24,$BO$4:$BP$73,$BP$4:$BP$73),””\"\")",null,"Range(\"AH24\").Formula = \"=SUMIF(内訳書!A:A,A24,内訳書!U:X)",null,null,null,null,"Range(\"AJ24\").Formula = \"=","SUMIF(内訳書!A:A,A24,内訳書!U:X)"]
["Range(\"L25\").Formula = \"＝IFERROR(LOOKUP($E25,$BO$4:$BP$73,$BP$4:$BP$73),””\"\")",null,"Range(\"AH25\").Formula = \"=SUMIF(内訳書!A:A,A25,内訳書!U:X)",null,null,null,null,"Range(\"AJ25\").Formula = \"=","SUMIF(内訳書!A:A,A25,内訳書!U:X)"]
["Range(\"L26\").Formula = \"＝IFERROR(LOOKUP($E26,$BO$4:$BP$73,$BP$4:$BP$73),””\"\")",null,"Range(\"AH26\").Formula = \"=SUMIF(内訳書!A:A,A26,内訳書!U:X)",null,null,null,null,"Range(\"AJ26\").Formula = \"=","SUMIF(内訳書!A:A,A26,内訳書!U:X)"]
[]
["ActiveSheet.Protect",null,"ActiveSheet.Protect"]
["  'シート保護",null,"  'シート保護"]
["End Sub",null,"End Sub"]